{"text_format":"1","workbook":"xlsx","n_sheets":10,"sheets":["Tarife","Parameter","Listen","Texte","Berechnung_einzeln","Beitragsrechner","Beitragsrechner IV","Druck","Erfassung_Bestand","Bestandesübersicht"],"not_rendered":{"charts":0,"images":2,"macros":1,"external_links":0,"defined_names":119,"comments":0,"pivot_tables":0},"unopened":[],"bounds":{"document_bytes":16777216,"sheet_cells":100000,"rows_first":2000,"rows_last":500,"rows_between":2000,"halvings":0,"cell_chars":16384,"cell_head_chars":4096},"cells_cut":0,"cells_raw":0,"read":"whole","date_system":"1900"}

{"sheet":"Tarife","index":0,"n_rows":164,"n_cols":16,"rows_kept":164,"cut":false,"hidden":true,"merged":[[0,0,0,2],[1,1,1,2],[1,3,1,4],[1,5,1,6]]}
["Tarife für das Jahr",null,null,null,null,null,2022]
[null,"Plan A",null,"Plan B",null,"Plan C"]
[null,"Männer","Frauen","Männer","Frauen","Männer","Frauen","SiFo","VK","Alter",null,null,null,"VK Rabatte","Rabatt","Vkmax"]
[{"$f":"p_jahr-18","v":2004},1.12E-2,1.01E-2,1.15E-2,1.03E-2,1.3299999999999999E-2,1.12E-2,0,8.0000000000000002E-3,{"$f":"p_jahr-A4","v":18},null,null,null,0,0,360]
[{"$f":"A4-1","v":2003},1.12E-2,1.01E-2,1.15E-2,1.03E-2,1.3299999999999999E-2,1.12E-2,0,8.0000000000000002E-3,19,null,null,null,1,1E-3,336]
[2002,1.12E-2,1.01E-2,1.15E-2,1.03E-2,1.3299999999999999E-2,1.12E-2,0,8.0000000000000002E-3,20,null,null,null,2,2E-3,312]
[2001,1.12E-2,1.01E-2,1.15E-2,1.03E-2,1.3299999999999999E-2,1.12E-2,0,8.0000000000000002E-3,21,null,null,null,3,3.0000000000000001E-3,288]
[2000,1.12E-2,1.01E-2,1.15E-2,1.03E-2,1.3299999999999999E-2,1.12E-2,0,8.0000000000000002E-3,22,null,null,null,4,4.0000000000000001E-3,264]
[1999,1.12E-2,1.01E-2,1.15E-2,1.03E-2,1.3299999999999999E-2,1.12E-2,0,8.0000000000000002E-3,23,null,null,null,5,5.0000000000000001E-3,240]
[1998,1.12E-2,1.01E-2,1.15E-2,1.03E-2,1.3299999999999999E-2,1.12E-2,0,8.0000000000000002E-3,24]
[1997,9.1509999999999994E-2,9.3710000000000002E-2,9.2509999999999995E-2,9.511E-2,9.6610000000000001E-2,9.8710000000000006E-2,1.1999999999999999E-3,1.4E-2,25,"=> SiFo ab 25ig"]
[1996,9.1509999999999994E-2,9.3710000000000002E-2,9.2509999999999995E-2,9.511E-2,9.6610000000000001E-2,9.8710000000000006E-2,1.1999999999999999E-3,1.4E-2,26]
[1995,9.1509999999999994E-2,9.3710000000000002E-2,9.2509999999999995E-2,9.511E-2,9.6610000000000001E-2,9.8710000000000006E-2,1.1999999999999999E-3,1.4E-2,27]
[1994,9.1509999999999994E-2,9.3710000000000002E-2,9.2509999999999995E-2,9.511E-2,9.6610000000000001E-2,9.8710000000000006E-2,1.1999999999999999E-3,1.4E-2,28]
[1993,9.1509999999999994E-2,9.3710000000000002E-2,9.2509999999999995E-2,9.511E-2,9.6610000000000001E-2,9.8710000000000006E-2,1.1999999999999999E-3,1.4E-2,29]
[1992,9.1509999999999994E-2,9.3710000000000002E-2,9.2509999999999995E-2,9.511E-2,9.6610000000000001E-2,9.8710000000000006E-2,1.1999999999999999E-3,1.4E-2,30]
[1991,9.1509999999999994E-2,9.3710000000000002E-2,9.2509999999999995E-2,9.511E-2,9.6610000000000001E-2,9.8710000000000006E-2,1.1999999999999999E-3,1.4E-2,31]
[1990,9.1509999999999994E-2,9.3710000000000002E-2,9.2509999999999995E-2,9.511E-2,9.6610000000000001E-2,9.8710000000000006E-2,1.1999999999999999E-3,1.4E-2,32]
[1989,9.1509999999999994E-2,9.3710000000000002E-2,9.2509999999999995E-2,9.511E-2,9.6610000000000001E-2,9.8710000000000006E-2,1.1999999999999999E-3,1.4E-2,33]
[1988,9.1509999999999994E-2,9.3710000000000002E-2,9.2509999999999995E-2,9.511E-2,9.6610000000000001E-2,9.8710000000000006E-2,1.1999999999999999E-3,1.4E-2,34]
[1987,0.12901000000000001,0.13400999999999999,0.13120999999999999,0.13700999999999999,0.13971,0.14291000000000001,1.1999999999999999E-3,1.4E-2,35]
[1986,0.12901000000000001,0.13400999999999999,0.13120999999999999,0.13700999999999999,0.13971,0.14291000000000001,1.1999999999999999E-3,1.4E-2,36]
[1985,0.12901000000000001,0.13400999999999999,0.13120999999999999,0.13700999999999999,0.13971,0.14291000000000001,1.1999999999999999E-3,1.4E-2,37]
[1984,0.12901000000000001,0.13400999999999999,0.13120999999999999,0.13700999999999999,0.13971,0.14291000000000001,1.1999999999999999E-3,1.4E-2,38]
[1983,0.12901000000000001,0.13400999999999999,0.13120999999999999,0.13700999999999999,0.13971,0.14291000000000001,1.1999999999999999E-3,1.4E-2,39]
[1982,0.12901000000000001,0.13400999999999999,0.13120999999999999,0.13700999999999999,0.13971,0.14291000000000001,1.1999999999999999E-3,1.4E-2,40]
[1981,0.12901000000000001,0.13400999999999999,0.13120999999999999,0.13700999999999999,0.13971,0.14291000000000001,1.1999999999999999E-3,1.4E-2,41]
[1980,0.12901000000000001,0.13400999999999999,0.13120999999999999,0.13700999999999999,0.13971,0.14291000000000001,1.1999999999999999E-3,1.4E-2,42]
[1979,0.12901000000000001,0.13400999999999999,0.13120999999999999,0.13700999999999999,0.13971,0.14291000000000001,1.1999999999999999E-3,1.4E-2,43]
[1978,0.12901000000000001,0.13400999999999999,0.13120999999999999,0.13700999999999999,0.13971,0.14291000000000001,1.1999999999999999E-3,1.4E-2,44]
[1977,0.18611,0.18561,0.19300999999999999,0.19170999999999999,0.20771000000000001,0.20571,1.1999999999999999E-3,1.4E-2,45]
[1976,0.18611,0.18561,0.19300999999999999,0.19170999999999999,0.20771000000000001,0.20571,1.1999999999999999E-3,1.4E-2,46]
[1975,0.18611,0.18561,0.19300999999999999,0.19170999999999999,0.20771000000000001,0.20571,1.1999999999999999E-3,1.4E-2,47]
[1974,0.18611,0.18561,0.19300999999999999,0.19170999999999999,0.20771000000000001,0.20571,1.1999999999999999E-3,1.4E-2,48]
[1973,0.18611,0.18561,0.19300999999999999,0.19170999999999999,0.20771000000000001,0.20571,1.1999999999999999E-3,1.4E-2,49]
[1972,0.18611,0.18561,0.19300999999999999,0.19170999999999999,0.20771000000000001,0.20571,1.1999999999999999E-3,1.4E-2,50]
[1971,0.18611,0.18561,0.19300999999999999,0.19170999999999999,0.20771000000000001,0.20571,1.1999999999999999E-3,1.4E-2,51]
[1970,0.18611,0.18561,0.19300999999999999,0.19170999999999999,0.20771000000000001,0.20571,1.1999999999999999E-3,1.4E-2,52]
[1969,0.18611,0.18561,0.19300999999999999,0.19170999999999999,0.20771000000000001,0.20571,1.1999999999999999E-3,1.4E-2,53]
[1968,0.18611,0.18561,0.19300999999999999,0.19170999999999999,0.20771000000000001,0.20571,1.1999999999999999E-3,1.4E-2,54]
[1967,0.21812000000000001,0.21501999999999999,0.22852,0.22372,0.24612000000000001,0.23782,1.1999999999999999E-3,1.4E-2,55]
[1966,0.21812000000000001,0.21501999999999999,0.22852,0.22372,0.24612000000000001,0.23782,1.1999999999999999E-3,1.4E-2,56]
[1965,0.21812000000000001,0.21501999999999999,0.22852,0.22372,0.24612000000000001,0.23782,1.1999999999999999E-3,1.4E-2,57]
[1964,0.21812000000000001,0.21501999999999999,0.22852,0.22372,0.24612000000000001,0.23782,1.1999999999999999E-3,1.4E-2,58]
[1963,0.21812000000000001,0.21501999999999999,0.22852,0.22372,0.24612000000000001,0.23782,1.1999999999999999E-3,1.4E-2,59]
[1962,0.21012,0.20532,0.21962000000000001,0.21212,0.23102,0.22142000000000001,1.1999999999999999E-3,1.4E-2,60]
[1961,0.21012,0.20532,0.21962000000000001,0.21212,0.23102,0.22142000000000001,1.1999999999999999E-3,1.4E-2,61]
[1960,0.21012,0.20532,0.21962000000000001,0.21212,0.23102,0.22142000000000001,1.1999999999999999E-3,1.4E-2,62]
[1959,0.21012,0.20532,0.21962000000000001,0.21212,0.23102,0.22142000000000001,1.1999999999999999E-3,1.4E-2,63]
[1958,0.21012,0.20532,0.21962000000000001,0.21212,0.23102,0.22142000000000001,1.1999999999999999E-3,1.4E-2,64]
[1957,0.21012,0,0.21962000000000001,0,0.23102,0,1.1999999999999999E-3,1.4E-2,65]
[]
[]
[]
[]
[]
[]
[]
[]
["Sparprämie","Männer","Frauen","Plan E","Plan F","Plan E+","Plan F+"]
[18,null,null,0,0,0,0]
[19,null,null,0,0,0,0]
[20,null,null,0,0,0,0]
[21,null,null,0,0,0,0]
[22,null,null,0,0,0,0]
[23,null,null,0,0,0,0]
[24,null,null,0,0,0,0]
[25,7.0000000000000007E-2,7.0000000000000007E-2,0.08,0.13,0.08,0.13]
[26,7.0000000000000007E-2,7.0000000000000007E-2,0.08,0.13,0.08,0.13]
[27,7.0000000000000007E-2,7.0000000000000007E-2,0.08,0.13,0.08,0.13]
[28,7.0000000000000007E-2,7.0000000000000007E-2,0.08,0.13,0.08,0.13]
[29,7.0000000000000007E-2,7.0000000000000007E-2,0.08,0.13,0.08,0.13]
[30,7.0000000000000007E-2,7.0000000000000007E-2,0.08,0.13,0.08,0.13]
[31,7.0000000000000007E-2,7.0000000000000007E-2,0.08,0.13,0.08,0.13]
[32,7.0000000000000007E-2,7.0000000000000007E-2,0.08,0.13,0.08,0.13]
[33,7.0000000000000007E-2,7.0000000000000007E-2,0.08,0.13,0.08,0.13]
[34,7.0000000000000007E-2,7.0000000000000007E-2,0.08,0.13,0.08,0.13]
[35,0.1,0.1,0.05,0.1,0.05,0.1]
[36,0.1,0.1,0.05,0.1,0.05,0.1]
[37,0.1,0.1,0.05,0.1,0.05,0.1]
[38,0.1,0.1,0.05,0.1,0.05,0.1]
[39,0.1,0.1,0.05,0.1,0.05,0.1]
[40,0.1,0.1,0.05,0.1,0.05,0.1]
[41,0.1,0.1,0.1,0.15,0.1,0.15]
[42,0.1,0.1,0.1,0.15,0.1,0.15]
[43,0.1,0.1,0.1,0.15,0.1,0.15]
[44,0.1,0.1,0.1,0.15,0.1,0.15]
[45,0.15,0.15,0.05,0.1,0.05,0.1]
[46,0.15,0.15,0.05,0.1,0.05,0.1]
[47,0.15,0.15,0.05,0.1,0.05,0.1]
[48,0.15,0.15,0.05,0.1,0.05,0.1]
[49,0.15,0.15,0.05,0.1,0.05,0.1]
[50,0.15,0.15,0.05,0.1,0.05,0.1]
[51,0.15,0.15,0.05,0.1,0.05,0.1]
[52,0.15,0.15,0.05,0.1,0.05,0.1]
[53,0.15,0.15,0.05,0.1,0.05,0.1]
[54,0.15,0.15,0.05,0.1,0.05,0.1]
[55,0.18,0.18,0.02,7.0000000000000007E-2,0.02,7.0000000000000007E-2]
[56,0.18,0.18,0.02,7.0000000000000007E-2,0.02,7.0000000000000007E-2]
[57,0.18,0.18,0.02,7.0000000000000007E-2,0.02,7.0000000000000007E-2]
[58,0.18,0.18,0.02,7.0000000000000007E-2,0.02,7.0000000000000007E-2]
[59,0.18,0.18,0.02,7.0000000000000007E-2,0.02,7.0000000000000007E-2]
[60,0.18,0.18,0.02,7.0000000000000007E-2,0.02,7.0000000000000007E-2]
[61,0.18,0.18,0.02,7.0000000000000007E-2,0.02,7.0000000000000007E-2]
[62,0.18,0.18,0.02,7.0000000000000007E-2,0.02,7.0000000000000007E-2]
[63,0.18,0.18,0.02,7.0000000000000007E-2,0.02,7.0000000000000007E-2]
[64,0.18,0.18,0.02,7.0000000000000007E-2,0.02,7.0000000000000007E-2]
[65,0.18,null,0.02,7.0000000000000007E-2,0.02,7.0000000000000007E-2]
[]
[]
[]
[]
[]
[]
[]
["Risikoprämie","Plan E+","Plan F+"]
[18,0,0]
[19,0,0]
[20,0,0]
[21,0,0]
[22,0,0]
[23,0,0]
[24,0,0]
[25,1E-3,2.7000000000000001E-3]
[26,1E-3,2.7000000000000001E-3]
[27,1E-3,2.7000000000000001E-3]
[28,1E-3,2.7000000000000001E-3]
[29,1E-3,2.7000000000000001E-3]
[30,1E-3,2.7000000000000001E-3]
[31,1E-3,2.7000000000000001E-3]
[32,1E-3,2.7000000000000001E-3]
[33,1E-3,2.7000000000000001E-3]
[34,1E-3,2.7000000000000001E-3]
[35,1E-3,2.7000000000000001E-3]
[36,1E-3,2.7000000000000001E-3]
[37,1E-3,2.7000000000000001E-3]
[38,1E-3,2.7000000000000001E-3]
[39,1E-3,2.7000000000000001E-3]
[40,1E-3,2.7000000000000001E-3]
[41,1E-3,2.7000000000000001E-3]
[42,1E-3,2.7000000000000001E-3]
[43,1E-3,2.7000000000000001E-3]
[44,1E-3,2.7000000000000001E-3]
[45,1E-3,2.7000000000000001E-3]
[46,1E-3,2.7000000000000001E-3]
[47,1E-3,2.7000000000000001E-3]
[48,1E-3,2.7000000000000001E-3]
[49,1E-3,2.7000000000000001E-3]
[50,1E-3,2.7000000000000001E-3]
[51,1E-3,2.7000000000000001E-3]
[52,1E-3,2.7000000000000001E-3]
[53,1E-3,2.7000000000000001E-3]
[54,1E-3,2.7000000000000001E-3]
[55,1E-3,2.7000000000000001E-3]
[56,1E-3,2.7000000000000001E-3]
[57,1E-3,2.7000000000000001E-3]
[58,1E-3,2.7000000000000001E-3]
[59,1E-3,2.7000000000000001E-3]
[60,1E-3,2.7000000000000001E-3]
[61,1E-3,2.7000000000000001E-3]
[62,1E-3,2.7000000000000001E-3]
[63,1E-3,2.7000000000000001E-3]
[64,1E-3,2.7000000000000001E-3]
[65,1E-3,2.7000000000000001E-3]

{"sheet":"Parameter","index":1,"n_rows":17,"n_cols":4,"rows_kept":17,"cut":false,"hidden":true,"merged":[]}
["Parameter","Wert 1","Wert 2"]
["Sprache",{"$f":"u_sprache1","v":"de"}]
["gültiges Jahr",2022,null,"->Regelt Gültigkeit des Rechners"]
["Jahr Beginn",{"$f":"DATE(B3,1,1)","v":"2022-01-01"}]
["Jahr Ende",{"$f":"DATE(B3,12,31)","v":"2022-12-31"}]
["Anz Tage im Jahr",{"$f":"p_jahr_ende-p_jahr_beginn+1","v":365}]
["max. AHV-Rente",28680,null,"-> Wichtig für alle Parameter"]
["minimal koordinierter Lohn",{"$f":"B7*0.125","v":3585}]
["max. Koordinationsabzug",{"$f":"B7*0.875*u_ivfaktor","v":25095}]
["Eintrittsschwelle",{"$f":"B7*0.75*u_ivfaktor","v":21510}]
["max. vers. BVG Lohn",{"$f":"B7*30*u_ivfaktor","v":860400}]
["max. koordinierter Lohn",{"$f":"B7*2.125*u_ivfaktor","v":60945}]
["max massgebender AHV Lohn",{"$f":"B7*3*u_ivfaktor","v":86040}]
[{"$f":"CONCATENATE(\"Zins im Jahr \",p_jahr)","v":"Zins im Jahr 2022"},0.01,null,"Verzinsung Sparguthaben"]
["Minimales Alter",18]
["Pensionsalter M",65]
["Pensionsalter W",64]

{"sheet":"Listen","index":2,"n_rows":97,"n_cols":4,"rows_kept":97,"cut":false,"hidden":true,"merged":[]}
["Sprache"]
["de",1,{"$f":"VLOOKUP(u_sprache1,Listen!A2:B4,2,FALSE)+1","v":2}]
["fr",2]
["it",3]
[]
[]
["Geschlecht"]
[{"$f":"VLOOKUP(\"geschlecht1\",texte,u_sprache,FALSE)","v":"männlich"},1,{"$f":"VLOOKUP(u_geschlecht1,A8:B9,2,FALSE)","v":2}]
[{"$f":"VLOOKUP(\"geschlecht2\",texte,u_sprache,FALSE)","v":"weiblich"},2]
[]
[{"$f":"VLOOKUP(\"geschlecht1k\",texte,u_sprache,FALSE)","v":"M"},null,{"$f":"IF(u_geschlecht=1,A11,IF(u_geschlecht=2,A12,\"\"))","v":"W"}]
[{"$f":"VLOOKUP(\"geschlecht2k\",texte,u_sprache,FALSE)","v":"W"}]
[]
[]
["Basispläne"]
[{"$f":"VLOOKUP(\"planA\",texte,u_sprache,FALSE)","v":"Plan A"},1,{"$f":"VLOOKUP(u_plan1,A16:B18,2,FALSE)","v":1}]
[{"$f":"VLOOKUP(\"planB\",texte,u_sprache,FALSE)","v":"Plan B"},3]
[{"$f":"VLOOKUP(\"planC\",texte,u_sprache,FALSE)","v":"Plan C"},5]
[]
[]
["Zusatzpläne / Kaderplan"]
[{"$f":"VLOOKUP(\"plan0\",texte,u_sprache,FALSE)","v":"Kein Zusatzplan"},0,{"$f":"VLOOKUP(u_zusatzplan1,A22:B26,2,FALSE)","v":0}]
[{"$f":"VLOOKUP(\"planE\",texte,u_sprache,FALSE)","v":"Zusatzplan E"},1]
[{"$f":"VLOOKUP(\"planF\",texte,u_sprache,FALSE)","v":"Zusatzplan F"},2]
[{"$f":"VLOOKUP(\"planE+\",texte,u_sprache,FALSE)","v":"Zusatzplan E+"},3]
[{"$f":"VLOOKUP(\"planF+\",texte,u_sprache,FALSE)","v":"Zusatzplan F+"},4]
[]
[]
["Koordinationsabzug"]
[{"$f":"VLOOKUP(\"mitKoA\",texte,u_sprache,FALSE)","v":"mit Koordinationsabzug"},1,{"$f":"VLOOKUP(u_plan_koa1,A30:B31,2,FALSE)","v":1}]
[{"$f":"VLOOKUP(\"ohneKoA\",texte,u_sprache,FALSE)","v":"ohne Koordinationabzug"},0]
[]
[]
["VK Abzug"]
[{"$f":"VLOOKUP(\"vk0\",texte,u_sprache,FALSE)","v":"Standardtarif"},0,{"$f":"VLOOKUP(u_vkrabatt1,A35:B40,2,FALSE)","v":0}]
[{"$f":"VLOOKUP(\"vk1\",texte,u_sprache,FALSE)","v":"Verwaltungskostentarif 1"},1]
[{"$f":"VLOOKUP(\"vk2\",texte,u_sprache,FALSE)","v":"Verwaltungskostentarif 2"},2]
[{"$f":"VLOOKUP(\"vk3\",texte,u_sprache,FALSE)","v":"Verwaltungskostentarif 3"},3]
[{"$f":"VLOOKUP(\"vk4\",texte,u_sprache,FALSE)","v":"Verwaltungskostentarif 4"},4]
[{"$f":"VLOOKUP(\"vk5\",texte,u_sprache,FALSE)","v":"Verwaltungskostentarif 5"},5]
[]
["Texte Bestandesübersicht (für Makro)"]
[{"$f":"VLOOKUP(\"grundbeitrag_vk\",texte,u_sprache,FALSE)","v":"Grundbeitrag Verwaltungskosten"}]
[{"$f":"VLOOKUP(\"prämie_betrieb\",texte,u_sprache,FALSE)","v":"Total Beiträge Betrieb"}]
[{"$f":"VLOOKUP(\"name\",texte,u_sprache,FALSE)","v":"Vorname / Name  "}]
[{"$f":"VLOOKUP(\"jahrgang2\",texte,u_sprache,FALSE)","v":"Jahrgang"}]
[{"$f":"VLOOKUP(\"ahvlohn_k\",texte,u_sprache,FALSE)","v":"AHV-Lohn"}]
[{"$f":"VLOOKUP(\"vers_lohn\",texte,u_sprache,FALSE)","v":"Versicherter Lohn"}]
[{"$f":"VLOOKUP(\"sparprämie_best\",texte,u_sprache,FALSE)","v":"Sparbeitrag %"}]
[{"$f":"VLOOKUP(\"sparprämie2_best\",texte,u_sprache,FALSE)","v":"Sparbeitrag"}]
[{"$f":"VLOOKUP(\"risikoprämie_best\",texte,u_sprache,FALSE)","v":"Risikobeitrag %"}]
[{"$f":"VLOOKUP(\"risikoprämie2_best\",texte,u_sprache,FALSE)","v":"Risikobeitrag"}]
[{"$f":"VLOOKUP(\"verwkosten2\",texte,u_sprache,FALSE)","v":"Verwaltungs-kosten"}]
[{"$f":"VLOOKUP(\"sifo2\",texte,u_sprache,FALSE)","v":"Sicherheits-fonds Beitrag"}]
[{"$f":"VLOOKUP(\"tot_prämie\",texte,u_sprache,FALSE)","v":"Total Beitrag"}]
[{"$f":"VLOOKUP(\"beitrag_an\",texte,u_sprache,FALSE)","v":"Beitrag Arbeitnehmer"}]
[{"$f":"VLOOKUP(\"beitrag_an2\",texte,u_sprache,FALSE)","v":"davon Anteil Arbeitnehmer"}]
[{"$f":"VLOOKUP(\"titel2\",texte,u_sprache,FALSE)","v":"Beitragsverzeichnis Pensionskasse"}]
[{"$f":"VLOOKUP(\"as_pencas\",texte,u_sprache,FALSE)","v":"Agrisano Pencas"}]
[{"$f":"VLOOKUP(\"as_pencas1\",texte,u_sprache,FALSE)","v":"Berufliche Vorsorge"}]
[{"$f":"VLOOKUP(\"fusszeile\",texte,u_sprache,FALSE)","v":"Laurstrasse 10 | 5201 Brugg | Telefon +41 (0)56 461 78 11 | Fax +41 (0)56 461 71 01\npencas@agrisano.ch | www.agrisano.ch"}]
[{"$f":"VLOOKUP(\"hinweis_zins\",texte,u_sprache,FALSE)","v":"Der Zins für die Nachschüssigkeit wurde nicht berücksichtigt."}]
[{"$f":"VLOOKUP(\"text1\",texte,u_sprache,FALSE)","v":"Die Beitragsberechnung beruht auf den erfassten Daten. Massgebend ist schlussendlich die Prämienrechnung der Agrisano Pencas, welche aufgrund der effektiv gemeldeten Löhne erstellt wird."}]
[{"$f":"VLOOKUP(\"titel_hinweis\",texte,u_sprache,FALSE)","v":"Hinweise:"}]
[{"$f":"VLOOKUP(\"beitrag_ag\",texte,u_sprache,FALSE)","v":"Beitrag Arbeitgeber"}]
[]
[]
["Liste Invalidität"]
[{"$f":"VLOOKUP(\"auswahl_iv1\",texte,u_sprache,FALSE)","v":"keine Reduktion"},0,1]
["25%",40,0.75]
["50%",50,0.5]
["75%",60,0.25]
["75%",66.66,0.25]
[{"$f":"VLOOKUP(\"auswahl_iv2\",texte,u_sprache,FALSE)","v":"kein BVG"},70,0]
[]
["Faktor",{"$f":"IF(u_ivaktiv1=0,1,VLOOKUP(u_ivgrad*100,B69:C74,2,TRUE))","v":1}]
["Reduktion",{"$f":"INDEX(A69:A74,MATCH(B76,C69:C74,0))","v":"keine Reduktion"}]
[]
["IV Rechner"]
[{"$f":"VLOOKUP(\"aktiv\",texte,u_sprache,FALSE)","v":"Aktiv"},1,{"$f":"IFERROR(IF(u_ivaktiv=A80,B80,B81),B81)","v":0}]
[{"$f":"VLOOKUP(\"nichtaktiv\",texte,u_sprache,FALSE)","v":"Nicht aktiv"},0]
[]
[]
[]
[]
["Usereingaben"]
["Vorname / Name  ",{"$f":"IF(u_ivaktiv1=0,C87,D87)","v":"Beispiel"},{"$f":"Beitragsrechner!D10","v":"Beispiel"},{"$f":"'Beitragsrechner IV'!D14","v":"Muster 1 Hans"}]
["AHV Nr","756.1234.1234.12",{"$f":"Beitragsrechner!D11","v":"756.1234.1234.12"},{"$f":"'Beitragsrechner IV'!D15","v":"756.9876.5432.10"}]
["Jahrgang  ",1995,{"$f":"Beitragsrechner!D12","v":1995},{"$f":"'Beitragsrechner IV'!D16","v":1980}]
["Geschlecht  ","weiblich",{"$f":"Beitragsrechner!D13","v":"weiblich"},{"$f":"'Beitragsrechner IV'!D17","v":"Uomo"}]
["Basisplan","Plan A",{"$f":"Beitragsrechner!D14","v":"Plan A"},{"$f":"'Beitragsrechner IV'!D18","v":"Piano A"}]
["Koordinationsabzug","mit Koordinationsabzug",{"$f":"Beitragsrechner!D15","v":"mit Koordinationsabzug"},{"$f":"'Beitragsrechner IV'!D19","v":"Con deduzione di coordinamento"}]
["Verwaltungskostentarif","Standardtarif",{"$f":"Beitragsrechner!D16","v":"Standardtarif"},{"$f":"'Beitragsrechner IV'!D20","v":"Tariffa standard"}]
["Zusatzplan","Kein Zusatzplan",{"$f":"Beitragsrechner!D17","v":"Kein Zusatzplan"},{"$f":"'Beitragsrechner IV'!D21","v":"Senza piano supplementare"}]
["Anstellungsdauer von","2022-01-01",{"$f":"Beitragsrechner!I11","v":"2022-01-01"},{"$f":"'Beitragsrechner IV'!I15","v":"2021-01-01"}]
["Anstellungsdauer bis","2022-12-31",{"$f":"Beitragsrechner!I12","v":"2022-12-31"},{"$f":"'Beitragsrechner IV'!I16","v":"2021-06-12"}]
["AHV-Lohn während der Anstellung:",86040,{"$f":"Beitragsrechner!I14","v":86040},{"$f":"'Beitragsrechner IV'!I18","v":55000}]

{"sheet":"Texte","index":3,"n_rows":97,"n_cols":4,"rows_kept":97,"cut":false,"hidden":true,"merged":[]}
["ID","Deutsch","Französisch","Italienisch"]
["titel1","Berechnung der Beiträge an die berufliche Vorsorge","Calcul des cotisations à la prévoyance professionnelle","Calcolo dei contributi a favore della previdenza professionale"]
["text1","Die Beitragsberechnung beruht auf den erfassten Daten. Massgebend ist schlussendlich die Prämienrechnung der Agrisano Pencas, welche aufgrund der effektiv gemeldeten Löhne erstellt wird.","Le décompte des cotisations se base sur les données enregistrées. Finalement, seul la facture de primes que l'Agrisano Pencas génére sur la base des salaires annoncés est déterminante.","In ogni caso fa stato quanto riportato nell’avviso di premio. Si declina qualsiasi responsabilità per un uso improprio."]
["text1a","Sie beinhaltet zudem einen Zins für das nachschüssige Inkasso.","Celle-ci comprend notamment un intérêt pour paiement à terme échu.","Le supplemento per versamento posticipato è include."]
["text2","Bei Fragen zur Prämienrechnung wenden Sie sich bitte an die Agrisano Stiftung Globalversicherung (Tel. 056 461 78 55).\nFür die Berechnung der Beiträge von (teil-)invaliden Arbeitnehmenden nehmen Sie bitte Kontakt mit der Agrisano Pencas (Tel. 056 461 78 11) auf.","Pour toute question, veuillez prendre contact avec Fondation Agrisano, Aussurance globale  (Tél. 056 461 78 55).\nPour le calcul des cotisations d’employés invalides (partiels ou totaux), veuillez prendre contact avec Agrisano Pencas (Tél. 056 461 78 11).","In caso di domande sull’avviso di premio si prega di rivolgersi alla Fondazione Agrisano, Assicurazione globale (tel. 056 461 78 55).\nPer il calcolo del premio di impiegati (parzialmente) invalidi si prega di prendere contatto con Agrisano Pencas (tel. 056 461 78 11)."]
["text3","Die Versicherungspflicht gilt nur für Anstellungsverhältnisse, die für mehr als 3 Monate eingegangen worden sind (gilt auch, wenn das Arbeitsverhältnis zwischenzeitlich maximal 3 Monate unterbrochen wird, die Gesamtbeschäftigungsdauer aber mehr als 3 Monate beträgt).","L'obligation d'assurance s’applique uniquement aux rapports de travail qui ont été conclus pour plus de 3 mois (vaut également si la relation de travail est interrompue au maximum 3 mois, mais que la du-rée totale de l'emploi est de plus de 3 mois).","L’obbligo di assicurazione trova applicazione soltan-to per i rapporti d’impiego che sono stati contratti per una durata superiore a 3 mesi (applicabile anche se il rapporto di lavoro viene interrotto temporaneamente per un periodo massimo di 3 mesi, ma la durata com-plessiva dell’occupazione è comunque superiore a 3 mesi)."]
["geschlecht1","männlich","masculin","Uomo"]
["geschlecht2","weiblich","feminin","Donna"]
["planA","Plan A","Plan A","Piano A"]
["planB","Plan B","Plan B","Piano B"]
["planC","Plan C","Plan C","Piano C"]
["planE","Zusatzplan E","Plan supplementaire E","Piano supplementare E"]
["planF","Zusatzplan F","Plan supplementaire F","Piano supplementare F"]
["planE+","Zusatzplan E+","Plan supplementaire E+","Piano supplementare E+"]
["planF+","Zusatzplan F+","Plan supplementaire F+","Piano supplementare F+"]
["plan0","Kein Zusatzplan","Sans plan supplementaire","Senza piano supplementare"]
["mitKoA","mit Koordinationsabzug","avec déduction de coordination","Con deduzione di coordinamento"]
["ohneKoA","ohne Koordinationabzug","sans déduction de coordination","senza deduzione di coordinamento"]
["vk0","Standardtarif","Tarif standard","Tariffa standard"]
["vk1","Verwaltungskostentarif 1","Tarif de frais administratifs 1","Tariffa dei costi di gestione 1"]
["vk2","Verwaltungskostentarif 2","Tarif de frais administratifs 2","Tariffa dei costi di gestione 2"]
["vk3","Verwaltungskostentarif 3","Tarif de frais administratifs 3","Tariffa dei costi di gestione 3"]
["vk4","Verwaltungskostentarif 4","Tarif de frais administratifs 4","Tariffa dei costi di gestione 4"]
["vk5","Verwaltungskostentarif 5","Tarif de frais administratifs 5","Tariffa dei costi di gestione 5"]
["as_pencas","Agrisano Pencas","Agrisano Pencas","Agrisano Pencas"]
["as_pencas1","Berufliche Vorsorge","Prévoyance professionnelle","Previdenza professionale"]
["person","Versicherte Person","Personne assuré","Persona assicurata "]
["name","Vorname / Name  ","Prénom / Nom","Nome / Cognome"]
["ahvnr","AHV-Nr.  ","N° AVS","N. AVS"]
["jahrgang","Jahrgang  ","Année de naissance","Anno di nascita"]
["jahrgang2","Jahrgang","Année de naissance","Annata"]
["geschlecht","Geschlecht  ","Sexe","Sesso"]
["pk","Versicherungslösung","Solution d'assurance","Soluzione assicurativa"]
["plan","Plan","Plan","Piano"]
["basisplan","Basisplan","Plan de base","Piano"]
["koa","Koordinationsabzug","Déduction de coordination","Deduzione di coordinamento"]
["vktarif","Verwaltungskostentarif","Tarif des frais administratifs","Tariffa die costi di gestione"]
["zusatzplan","Zusatzplan","Plan supplementaire","Piano supplementare"]
["anstellung","Anstellung","L'emploi","L'impiego"]
["jahr","Jahr","Année","Anno"]
["anstellungsdauer","Anstellungsdauer von","Durée de l'emploi du","Durata dell’impiego da"]
["anstellungsdauer_bis","Anstellungsdauer bis","Durée de l'emploi au","Durata dell’impiego a"]
["anstellungsdauer_k","Anst. von","emploi du","Impiegato da"]
["anstellungsdauer_bis_k","Anst. bis","emploi au","Impiegato a"]
["ahvlohn","AHV-Lohn während der Anstellung:","Salaire AVS perçu pour toute la durée","Salario AVS percepito durante l’impiego"]
["ahvlohn_k","AHV-Lohn","Salaire AVS","Salario AVS"]
["text4","Auf Anstellungsdauer bezogen:","Pour la durée de l'emploi:","Per la durata dell'impiego"]
["text5","Minimal koordinierter Lohn","Salaire coordoné LPP min. perçu","Salario coordinato minimo percepito durante l’impiego"]
["vers_lohn","Versicherter Lohn","Salaire assuré","Salario ass. percepito durante l’impiego"]
["tage","Tage","Jours","Giorni"]
["hinweis1","Achtung, Sie haben einen reduzierten Verwaltungskostentarif ausgewählt.","Attention, vous avez choisi un tarif réduit pour les frais administratifs.","Attenzione, per i costi di gestione è stata selezionata una tariffa ridotta"]
["hinweis2","Dieser gilt nur nach Absprache mit der Agrisano Pencas.","Celui-ci n'est valable q'après entente avec l'Agrisano Pencas.","che trova applicazione soltanto previo accordo con Agrisano Pencas."]
["sparprämie","Sparbeitrag","Cotisation d'épargne","Premio di risparmio"]
["risikoprämie","Risikobeitrag","Cotisation de risque","Premio di rischio"]
["verwkosten","Verwaltungskosten","Frais administratifs","Costi di gestione"]
["sifo","Beitrag Sicherheitsfonds","Fonds de garantie","Contributo per il fondo di garanzia"]
["tot_prämie","Total Beitrag","Cotisation totale","Totale del premio"]
["altersgutschrift","Altersgutschrift","Bonification de vieillesse","Accredito di vecchiaia"]
["beitrag","Beitrag","Cotisation","Contributo"]
["tabelle","Tabelle","Tableau","Tabella"]
["netto","netto","nette","netto"]
["vers_lohnes","in % des vers. Lohnes","% du salaire assuré","% del salario assicurato"]
["AHVLohnes","in % des AHV-Lohnes","% du salaire AVS","% del salario AVS"]
["franken","CHF","CHF","CHF"]
["beitrag_an_max","Maximaler Beitrag des Arbeitnehmers","Cotisation maximale de l'employé","Contributo massimo del lavoratore"]
["beitrag_an","Beitrag Arbeitnehmer","Cotisation de l'employé","Contributo del lavoratore"]
["beitrag_an2","davon Anteil Arbeitnehmer","Part du salarié","Contributo del lavoratore"]
["beitrag_ag","Beitrag Arbeitgeber","Cotisation de l'employeur","Contributo del datore di lavoro"]
["prämie_betrieb","Total Beiträge Betrieb","Cotisation totale de l'exloitation","Totale die contributi della società"]
["titel_bestandesrechner","Bestandesrechner Agrisano Pencas","Calculateur de prime ","Calcolo dei contributi del portafoglio"]
["name_betrieb","Name Betrieb","Nom de","Nome"]
["adresse","Adresse","Adresse","Indirizzo"]
["sparprämie_best","Sparbeitrag %","Cotisation d'épargne (%)","Premi risparmio (%)"]
["sparprämie2_best","Sparbeitrag","Cotisation d'épargne","Premi risparmio"]
["risikoprämie_best","Risikobeitrag %","Cotisation de risque (%)","Premi rischio (%)"]
["risikoprämie2_best","Risikobeitrag","Cotisation de risque","Premi rischio"]
["verwkosten2","Verwaltungs-kosten","Frais de gestion","Costi di gestione"]
["sifo2","Sicherheits-fonds Beitrag","Fonds de sécurité","Fondo di garanzia"]
["titel2","Beitragsverzeichnis Pensionskasse","Cotisations de la prévoyance professionnelle","Contributi della previdenza professionale"]
["grundbeitrag_vk","Grundbeitrag Verwaltungskosten","Cotisation de base frais administratifs","Contributo di base per le spese amministrtive "]
["geschlecht1k","M","M","M"]
["geschlecht2k","W","F","F"]
["fusszeile","Laurstrasse 10 | 5201 Brugg | Telefon +41 (0)56 461 78 11 | Fax +41 (0)56 461 71 01\npencas@agrisano.ch | www.agrisano.ch","Laurstrasse 10 | 5201 Brugg | Téléphone +41 (0)56 461 78 11 | Fax +41 (0)56 461 71 01\npencas@agrisano.ch | www.agrisano.ch","Laurstrasse 10 | 5201 Brugg | Telefono  +41 (0)56 461 78 11 | Fax +41 (0)56 461 71 01\npencas@agrisano.ch | www.agrisano.ch"]
["auswahl_iv1","keine Reduktion","Pas de réduction","Nessuna riduzione"]
["auswahl_iv2","kein BVG","Pas de LPP","Nessuna LPP"]
["ivgrad","Invaliditätsgrad","Degré d'invalidité","Grado di invalidità"]
["red_koa","Reduktion Koordinationsabzug","Réduction de la déduction de coordination","Riduzione delle deduzione di coordinamento"]
["aktiv","Aktiv","actif","attivo"]
["nichtaktiv","Nicht aktiv","Non actif","non attivo"]
["hinweis_zins","Der Zins für die Nachschüssigkeit wurde nicht berücksichtigt.","Les intérêts pour le paiement à terme échu n'a pas été pris en compte.","Le supplemento per versamento posticipato non è considerato."]
["hinweis_iv","Der IV - Beitragsrechner ist aktiv! Bitte entsprechendes Tabellenblatt verwenden.","Le calculateur de cotisation AI est actif! Veuillez utiliser la feuille Excel correspondante.","Der IV - Beitragsrechner ist aktiv! Bitte entsprechendes Tabellenblatt verwenden."]
["titel1_iv","Berechnung der Beiträge an die berufliche Vorsorge - Bei Invalidität","Calcul des cotisations à la prévoyance professionnelle - en cas d'invalidité","Calcolo dei contributi a favore della previdenza pro-fessionale"]
["titel_hinweis","Hinweise:","Indication :","Indicazione"]
["ivrechner","IV-Rechner","Calculateur AI","Calcolatore AI"]
["ivrechner_aktiv","IV-Rechner aktiv?","Calculateur AI actif?","Calcolatore AI attivo?"]
["hinweis_druck","Zum Drucken das Tabellenblatt \"Druck\" verwenden","Pour imprimer le tableau utiliser le  \"Imprimer\"","Per stampare la tabella utilizzare \"Stampa\""]
["hinweis_erf_bestand","Hinweis: Um invalide Personen zu berechnen, bitte den Einzelrechner verwenden.","Indication : Pour le calcul de personnes invalides, veuillez utiliser le calculateur individuel.","Hinweis: Um invalide Personen zu berechnen, bitte den Einzelrechner verwenden."]

{"sheet":"Berechnung_einzeln","index":4,"n_rows":59,"n_cols":11,"rows_kept":59,"cut":false,"hidden":true,"merged":[]}
["Berechnungen"]
[]
[]
["Anstellungsdauer",null,null,null,null,null,null,"Bedingungen","Standard","mit Koa"]
["Start Anstellung",{"$f":"u_anst_start","v":44562},null,null,null,null,null,"Jahrgang erfasst",{"$f":"IF(u_jahrgang>0,TRUE,FALSE)","v":true}]
["Ende Anstellung",{"$f":"u_anst_ende","v":44926},null,null,null,null,null,"Geschlecht erfasst",{"$f":"IF(u_geschlecht1=\"\",FALSE,TRUE)","v":true}]
["Anzahl Tage",{"$f":"IF(OR(B5=0,B6=0,B6-B5+1<0),1,B6-B5+1)","v":365},null,null,null,null,null,"Alter min erreicht",{"$f":"IF(p_jahr-p_alter_min>=u_jahrgang,TRUE,FALSE)","v":true}]
[null,null,null,null,null,null,null,"Unter Alter max",{"$f":"IF(AND(u_geschlecht=1,p_jahr-p_alter_max_m<=u_jahrgang),TRUE,IF(AND(u_geschlecht=2,p_jahr-p_alter_max_w<=u_jahrgang),TRUE,FALSE))","v":true}]
[null,null,null,null,null,null,null,"Basisplan erfasst",{"$f":"IF(u_plan1=\"\",FALSE,TRUE)","v":true}]
[null,null,null,null,null,null,null,"Koa erfasst",{"$f":"IF(u_plan_koa1=\"\",FALSE,TRUE)","v":true}]
["Lohn",null,"mit Koa",null,null,null,null,"Vk-Tarif erfasst",{"$f":"IF(u_vkrabatt1=\"\",FALSE,TRUE)","v":true}]
["Lohn während Anst",{"$f":"u_lohn","v":86040},null,null,null,null,null,"Tage vorhanden",{"$f":"b_anst_dauer>1","v":true}]
["Lohn auf Jahr aufgerechnet",{"$f":"u_lohn/b_anst_dauer*p_jahr_tage","v":86040},null,null,null,null,null,"Lohn vorhanden",{"$f":"B12>0","v":true},null,"=> Lohn grösser 0"]
[null,null,null,null,null,null,null,"Über Eintrittsschwelle",{"$f":"b_lohn_jahr>p_eintrittsschwelle","v":true}]
["min. ko.Lohn (auf Dauer)",{"$f":"ROUND(p_min_kolohn/p_jahr_tage*b_anst_dauer,0)","v":3585},{"$f":"ROUND(p_min_kolohn/p_jahr_tage*b_anst_dauer,0)","v":3585},null,null,null,null,"Lohn über min. Ko.lohn",{"$f":"B12>=(B15+B16)","v":true},{"$f":"B12>=(C15+C16)","v":true},"=> wenn falsch, dann KoordLohn = min. koordLohn // eigener Wert für mit/ohne Koa"]
["eff. Koordinationabzug (auf Dauer)",{"$f":"IF(I21,ROUND(p_max_koabzug/p_jahr_tage*b_anst_dauer,0),0)","v":25095},{"$f":"ROUND(p_max_koabzug/p_jahr_tage*b_anst_dauer,0)","v":25095},null,null,null,null,"Übertrifft max. Vers Lohn",{"$f":"b_lohn_jahr>p_maxBVGLohn","v":false}]
["Max. ver Lohn BVG (auf Dauer)",{"$f":"ROUND(p_maxBVGLohn/p_jahr_tage*b_anst_dauer,2)","v":860400},{"$f":"ROUND(p_maxBVGLohn/p_jahr_tage*b_anst_dauer,2)","v":860400},null,null,null,null,"Grundlagen 1 erfüllt",{"$f":"AND(I5:I13)","v":true},null,"=> Alles Bedingungen erfüllt, ohne Lohn über Eintrittsschwelle"]
["Max Lohn - kooAbzug",{"$f":"B17-B16","v":835305},{"$f":"C17-C16","v":835305},null,null,null,null,"Grundlagen erfüllt",{"$f":"AND(I14,I17)","v":true},null,"=> Grundlagen 1 und Lohn über Eintrittsschwelle"]
["Koord Lohn (auf Dauer)",{"$f":"ROUND(IF(b_grundlagen_erf,IF(u_ivfaktor=0,0,IF($I$16,B18,IF($I$15,u_lohn-B16,B15))),0),0)","v":60945},{"$f":"ROUND(IF(b_grundlagen_erf,IF(u_ivfaktor=0,0,IF(I16,C18,IF(J15,u_lohn-C16,C15))),0),0)","v":60945},null,null,null,null,"Übertrifft max. AHV Lohn",{"$f":"b_lohn_jahr>p_max_ahvlohn","v":false}]
["überobl. Vers Lohn",{"$f":"ROUND(IF(I19,b_koordLohn-p_max_kolohn/p_jahr_tage*b_anst_dauer,0),0)","v":0},{"$f":"ROUND(IF(I19,C19-p_max_kolohn/p_jahr_tage*b_anst_dauer,0),0)","v":0}]
["BVG vers. Lohn",{"$f":"ROUND(IF(I19,C19-C20,C19),0)","v":60945},null,null,null,null,null,"Plan mit Ko.abzug",{"$f":"IF(I10,IF(u_plan_koa=1,TRUE,FALSE),FALSE)","v":true}]
[null,null,null,null,null,null,null,"VK max",{"$f":"B38>B37","v":true}]
[]
[null,null,null,null,null,null,null,"Zusatzplan vorhanden",{"$f":"u_zusatzplan>0","v":false}]
[]
[null,null,null,null,null,null,null,"IV-Rechner aktiv",{"$f":"IF(u_ivaktiv1=1,TRUE,FALSE)","v":false}]
["Tarife"]
["Sparprämie Satz",{"$f":"ROUND(IF(b_grundlagen_erf1,VLOOKUP(p_jahr-u_jahrgang,pr_sparteil,u_geschlecht+1,FALSE)/(1+p_zins),0),5)","v":6.9309999999999997E-2}]
["Sparprämie",{"$f":"ROUND(IF(b_grundlagen_erf,b_koordLohn*B28,0),1)","v":4224.1000000000004}]
[]
["Total Prämiensatz",{"$f":"IF(b_grundlagen_erf1,VLOOKUP(u_jahrgang,pr_risiko,u_plan+u_geschlecht,FALSE)-VLOOKUP(u_vkrabatt,pr_vkrabatt,2,FALSE),0)","v":9.3710000000000002E-2}]
[]
["SiFo - Satz",{"$f":"IF(b_grundlagen_erf1,VLOOKUP(u_jahrgang,pr_risiko,8,FALSE),0)","v":1.1999999999999999E-3}]
["SiFo - Betrag",{"$f":"ROUND(IF(b_grundlagen_erf,B33*B21,0),1)","v":73.099999999999994}]
[]
["VK Satz theoretisch",{"$f":"VLOOKUP(u_jahrgang,pr_risiko,9,FALSE)-VLOOKUP(u_vkrabatt,pr_vkrabatt,2,FALSE)","v":1.4E-2}]
["VK max",{"$f":"VLOOKUP(u_vkrabatt,pr_vkrabatt,3,FALSE)/p_jahr_tage*b_anst_dauer","v":360}]
["VK theoretisch",{"$f":"B36*b_koordLohn","v":853.23}]
["VK effektiv",{"$f":"ROUND(IF(b_grundlagen_erf,IF(I22,B37,B38),0),1)","v":360}]
["VK Satz effektiv",{"$f":"IFERROR(IF(b_grundlagen_erf,ROUND(b_vkeff/b_koordLohn,3),0),0)","v":6.0000000000000001E-3}]
[]
["Risikoprämie Satz",{"$f":"IF(b_grundlagen_erf1,ROUND(b_prämie_tot-b_sparprämie_satz-b_vk_theo-b_sifo_satz,5),0)","v":9.1999999999999998E-3}]
["Risikoprämie",{"$f":"ROUND(IF(b_grundlagen_erf,b_koordLohn*B42,0),1)","v":560.70000000000005}]
[]
["Total AHV-Prämie",{"$f":"IFERROR((ROUND(b_prämie_ges,1)/ROUND(b_lohn_jahr,1))/2,0)","v":3.032252440725244E-2}]
["Total Netto Prämie Satz",{"$f":"IFERROR(IF(b_grundlagen_erf,(ROUND(b_sparprämie,1)+ROUND(b_sifo,1)+ROUND(b_vkeff,1)+ROUND(b_risikoprämie,1))/b_koordLohn,\"\"),0)","v":8.5616539502830435E-2}]
["Total Netto Prämie",{"$f":"IF(b_grundlagen_erf,b_prämie_tot_netto*b_koordLohn,0)","v":5217.9000000000005}]
[]
["Anteil AN",{"$f":"IF(b_grundlagen_erf,b_prämie_ges/2,0)","v":2608.9500000000003}]
[]
[]
["Zusatzplan"]
["Sparprämie Zusatz Satz",{"$f":"IF(AND(b_grundlagen_erf,I24),ROUND(VLOOKUP(p_jahr-u_jahrgang,pr_sparteil,u_zusatzplan+3,FALSE)/(1+p_zins),5),\"\")","v":""}]
["Sparprämie Zusatz",{"$f":"ROUND(IF(AND(b_grundlagen_erf,I24),B53*b_koordLohn,0),1)","v":0}]
[]
["Risikoprämie Zusatz Satz",{"$f":"IF(u_zusatzplan>2,IF(AND(b_grundlagen_erf,I24),ROUND(VLOOKUP(p_jahr-u_jahrgang,Risikoprämie_Zusatz,u_zusatzplan-1,FALSE)/(1+p_zins),4),\"\"),\"\")","v":""}]
["Risikoprämie Zusatz",{"$f":"IF(u_zusatzplan<3,0,ROUND(IF(AND(b_grundlagen_erf,I24),B56*b_koordLohn,0),1))","v":0}]
[]
["Total Zusatz",{"$f":"SUM(B54,B57)","v":0}]

{"sheet":"Beitragsrechner","index":5,"n_rows":51,"n_cols":15,"rows_kept":51,"cut":false,"hidden":false,"merged":[[23,11,23,12],[2,8,2,9],[5,1,5,12],[6,1,6,12],[7,1,7,12],[3,1,3,12],[2,11,2,12],[12,1,12,2],[12,3,12,4],[9,1,9,2],[9,3,9,4],[10,1,10,2],[10,3,10,4],[11,1,11,2],[11,3,11,4],[13,1,13,2],[13,3,13,4],[14,1,14,2],[14,3,14,4],[15,1,15,2],[15,3,15,4],[24,1,24,2],[24,3,24,4],[24,5,24,6],[24,7,24,8],[23,7,23,8],[16,1,16,2],[16,3,16,4],[23,1,23,2],[23,3,23,4],[23,5,23,6]]}
[]
[null,null,null,null,null,null,null,null,{"$f":"VLOOKUP(\"as_pencas\",texte,u_sprache,FALSE)","v":"Agrisano Pencas"}]
[null,null,null,null,null,null,null,null,{"$f":"VLOOKUP(\"as_pencas1\",texte,u_sprache,FALSE)","v":"Berufliche Vorsorge"},null,null,{"$f":"TODAY()","v":"2022-04-07"}]
[null,{"$f":"VLOOKUP(\"titel1\",texte,u_sprache,FALSE)","v":"Berechnung der Beiträge an die berufliche Vorsorge"},null,null,null,null,null,null,null,null,null,null,null,null,"de"]
[]
[null,{"$f":"VLOOKUP(\"text1\",texte,u_sprache,FALSE)","v":"Die Beitragsberechnung beruht auf den erfassten Daten. Massgebend ist schlussendlich die Prämienrechnung der Agrisano Pencas, welche aufgrund der effektiv gemeldeten Löhne erstellt wird."}]
[null,{"$f":"VLOOKUP(\"text2\",texte,u_sprache,FALSE)","v":"Bei Fragen zur Prämienrechnung wenden Sie sich bitte an die Agrisano Stiftung Globalversicherung (Tel. 056 461 78 55).\nFür die Berechnung der Beiträge von (teil-)invaliden Arbeitnehmenden nehmen Sie bitte Kontakt mit der Agrisano Pencas (Tel. 056 461 78 11) auf."}]
[null,{"$f":"VLOOKUP(\"text3\",texte,u_sprache,FALSE)","v":"Die Versicherungspflicht gilt nur für Anstellungsverhältnisse, die für mehr als 3 Monate eingegangen worden sind (gilt auch, wenn das Arbeitsverhältnis zwischenzeitlich maximal 3 Monate unterbrochen wird, die Gesamtbeschäftigungsdauer aber mehr als 3 Monate beträgt)."}]
[]
[null,{"$f":"VLOOKUP(\"name\",texte,u_sprache,FALSE)","v":"Vorname / Name  "},null,"Beispiel",null,null,{"$f":"VLOOKUP(\"jahr\",texte,u_sprache,FALSE)","v":"Jahr"},null,{"$f":"p_jahr","v":2022},null,null,null,null,""]
[null,{"$f":"VLOOKUP(\"ahvnr\",texte,u_sprache,FALSE)","v":"AHV-Nr.  "},null,"756.1234.1234.12",null,null,{"$f":"VLOOKUP(\"anstellungsdauer\",texte,u_sprache,FALSE)","v":"Anstellungsdauer von"},null,"2022-01-01"]
[null,{"$f":"VLOOKUP(\"jahrgang\",texte,u_sprache,FALSE)","v":"Jahrgang  "},null,1995,null,null,{"$f":"VLOOKUP(\"anstellungsdauer_bis\",texte,u_sprache,FALSE)","v":"Anstellungsdauer bis"},null,"2022-12-31"]
[null,{"$f":"VLOOKUP(\"geschlecht\",texte,u_sprache,FALSE)","v":"Geschlecht  "},null,"weiblich",null,null,{"$f":"VLOOKUP(\"tage\",texte,u_sprache,FALSE)","v":"Tage"},null,{"$f":"Berechnung_einzeln!B7","v":365}]
[null,{"$f":"VLOOKUP(\"basisplan\",texte,u_sprache,FALSE)","v":"Basisplan"},null,"Plan A",null,null,{"$f":"VLOOKUP(\"ahvlohn\",texte,u_sprache,FALSE)","v":"AHV-Lohn während der Anstellung:"},null,86040]
[null,{"$f":"VLOOKUP(\"koa\",texte,u_sprache,FALSE)","v":"Koordinationsabzug"},null,"mit Koordinationsabzug",null,null,{"$f":"VLOOKUP(\"text4\",texte,u_sprache,FALSE)","v":"Auf Anstellungsdauer bezogen:"}]
[null,{"$f":"VLOOKUP(\"vktarif\",texte,u_sprache,FALSE)","v":"Verwaltungskostentarif"},null,"Standardtarif",null,null,{"$f":"VLOOKUP(\"text5\",texte,u_sprache,FALSE)","v":"Minimal koordinierter Lohn"},null,{"$f":"Berechnung_einzeln!B15","v":3585}]
[null,{"$f":"VLOOKUP(\"zusatzplan\",texte,u_sprache,FALSE)","v":"Zusatzplan"},null,"Kein Zusatzplan",null,null,{"$f":"VLOOKUP(\"koa\",texte,u_sprache,FALSE)","v":"Koordinationsabzug"},null,{"$f":"Berechnung_einzeln!B16","v":25095}]
[null,null,null,null,null,null,{"$f":"VLOOKUP(\"vers_lohn\",texte,u_sprache,FALSE)","v":"Versicherter Lohn"},null,{"$f":"b_koordLohn","v":60945}]
[null,{"$f":"IF(u_vkrabatt<>0,VLOOKUP(\"hinweis1\",texte,u_sprache,FALSE),\"\")","v":""}]
[null,{"$f":"IF(u_vkrabatt<>0,VLOOKUP(\"hinweis2\",texte,u_sprache,FALSE),\"\")","v":""}]
[]
[null,{"$f":"VLOOKUP(\"basisplan\",texte,u_sprache,FALSE)","v":"Basisplan"}]
[]
[null,{"$f":"VLOOKUP(\"sparprämie\",texte,u_sprache,FALSE)","v":"Sparbeitrag"},null,{"$f":"VLOOKUP(\"risikoprämie\",texte,u_sprache,FALSE)","v":"Risikobeitrag"},null,{"$f":"VLOOKUP(\"verwkosten\",texte,u_sprache,FALSE)","v":"Verwaltungskosten"},null,{"$f":"VLOOKUP(\"sifo\",texte,u_sprache,FALSE)","v":"Beitrag Sicherheitsfonds"},null,null,null,{"$f":"VLOOKUP(\"tot_prämie\",texte,u_sprache,FALSE)","v":"Total Beitrag"}]
[]
[null,"%",{"$f":"VLOOKUP(\"altersgutschrift\",texte,u_sprache,FALSE)","v":"Altersgutschrift"},"%",{"$f":"VLOOKUP(\"beitrag\",texte,u_sprache,FALSE)","v":"Beitrag"},"%",{"$f":"VLOOKUP(\"beitrag\",texte,u_sprache,FALSE)","v":"Beitrag"},"%",{"$f":"VLOOKUP(\"beitrag\",texte,u_sprache,FALSE)","v":"Beitrag"},null,{"$f":"VLOOKUP(\"vers_Lohnes\",texte,u_sprache,FALSE)","v":"in % des vers. Lohnes"},{"$f":"VLOOKUP(\"AHVLohnes\",texte,u_sprache,FALSE)","v":"in % des AHV-Lohnes"},{"$f":"VLOOKUP(\"franken\",texte,u_sprache,FALSE)","v":"CHF"}]
[]
[null,{"$f":"b_sparprämie_satz","v":6.9309999999999997E-2},{"$f":"b_sparprämie","v":4224.1000000000004},{"$f":"b_risiko_satz","v":9.1999999999999998E-3},{"$f":"b_risikoprämie","v":560.70000000000005},{"$f":"Berechnung_einzeln!B40","v":6.0000000000000001E-3},{"$f":"b_vkeff","v":360},{"$f":"b_sifo_satz","v":1.1999999999999999E-3},{"$f":"b_sifo","v":73.099999999999994},null,{"$f":"b_prämie_tot_netto","v":8.5616539502830435E-2},{"$f":"Berechnung_einzeln!B45","v":3.032252440725244E-2},{"$f":"b_prämie_ges","v":5217.9000000000005}]
[]
[null,{"$f":"VLOOKUP(\"zusatzplan\",texte,u_sprache,FALSE)","v":"Zusatzplan"}]
[]
[null,{"$f":"b_sparprämie_satz_z","v":""},{"$f":"b_sparprämie_z","v":0},{"$f":"Berechnung_einzeln!B56","v":""},{"$f":"Berechnung_einzeln!B57","v":0},null,null,null,null,null,null,null,{"$f":"IF(E32=\"\",C32,C32+E32)","v":0}]
[]
[null,null,null,null,null,null,null,{"$f":"VLOOKUP(\"tot_prämie\",texte,u_sprache,FALSE)","v":"Total Beitrag"},null,null,null,null,{"$f":"SUM(M28:M32)","v":5217.9000000000005}]
[]
[null,null,null,null,null,null,null,{"$f":"VLOOKUP(\"beitrag_an_max\",texte,u_sprache,FALSE)","v":"Maximaler Beitrag des Arbeitnehmers"},null,null,null,null,{"$f":"M34/2","v":2608.9500000000003}]
[]
[]
[]
[null,null,null,null,{"$f":"VLOOKUP(\"hinweis_iv\",texte,u_sprache,FALSE)","v":"Der IV - Beitragsrechner ist aktiv! Bitte entsprechendes Tabellenblatt verwenden."}]
[]
[]
[]
[]
[]
[]
[]
[]
[]
[]
[null,null,null,null,null,{"$f":"VLOOKUP(\"hinweis_druck\",texte,u_sprache,FALSE)","v":"Zum Drucken das Tabellenblatt \"Druck\" verwenden"}]

{"sheet":"Beitragsrechner IV","index":6,"n_rows":54,"n_cols":14,"rows_kept":54,"cut":false,"hidden":true,"merged":[[28,5,28,6],[28,7,28,8],[28,9,28,12],[29,1,29,2],[29,3,29,4],[29,5,29,6],[29,7,29,8],[29,9,29,12],[20,1,20,2],[19,3,19,4],[20,3,20,4],[28,1,28,2],[28,3,28,4],[16,1,16,2],[16,3,16,4],[18,1,18,2],[17,3,17,4],[19,1,19,2],[17,1,17,2],[18,3,18,4],[13,1,13,2],[13,3,13,4],[14,1,14,2],[14,3,14,4],[15,1,15,2],[15,3,15,4],[11,1,11,12],[6,8,6,9],[6,11,6,12],[7,1,7,12],[9,1,9,12],[10,1,10,12]]}
[]
[null,{"$f":"VLOOKUP(\"ivrechner\",texte,u_sprache,FALSE)","v":"IV-Rechner"}]
[null,{"$f":"VLOOKUP(\"ivrechner_aktiv\",texte,u_sprache,FALSE)","v":"IV-Rechner aktiv?"},null,"Nicht aktiv"]
[]
[]
[null,null,null,null,null,null,null,null,{"$f":"VLOOKUP(\"as_pencas\",texte,u_sprache,FALSE)","v":"Agrisano Pencas"}]
[null,null,null,null,null,null,null,null,{"$f":"VLOOKUP(\"as_pencas1\",texte,u_sprache,FALSE)","v":"Berufliche Vorsorge"},null,null,{"$f":"TODAY()","v":"2022-04-07"}]
[null,{"$f":"VLOOKUP(\"titel1_iv\",texte,u_sprache,FALSE)","v":"Berechnung der Beiträge an die berufliche Vorsorge - Bei Invalidität"}]
[]
[null,{"$f":"VLOOKUP(\"text1\",texte,u_sprache,FALSE)","v":"Die Beitragsberechnung beruht auf den erfassten Daten. Massgebend ist schlussendlich die Prämienrechnung der Agrisano Pencas, welche aufgrund der effektiv gemeldeten Löhne erstellt wird."}]
[null,{"$f":"VLOOKUP(\"text2\",texte,u_sprache,FALSE)","v":"Bei Fragen zur Prämienrechnung wenden Sie sich bitte an die Agrisano Stiftung Globalversicherung (Tel. 056 461 78 55).\nFür die Berechnung der Beiträge von (teil-)invaliden Arbeitnehmenden nehmen Sie bitte Kontakt mit der Agrisano Pencas (Tel. 056 461 78 11) auf."}]
[null,{"$f":"VLOOKUP(\"text3\",texte,u_sprache,FALSE)","v":"Die Versicherungspflicht gilt nur für Anstellungsverhältnisse, die für mehr als 3 Monate eingegangen worden sind (gilt auch, wenn das Arbeitsverhältnis zwischenzeitlich maximal 3 Monate unterbrochen wird, die Gesamtbeschäftigungsdauer aber mehr als 3 Monate beträgt)."}]
[]
[null,{"$f":"VLOOKUP(\"name\",texte,u_sprache,FALSE)","v":"Vorname / Name  "},null,"Muster 1 Hans",null,null,{"$f":"VLOOKUP(\"jahr\",texte,u_sprache,FALSE)","v":"Jahr"},null,{"$f":"p_jahr","v":2022},null,null,null,null,""]
[null,{"$f":"VLOOKUP(\"ahvnr\",texte,u_sprache,FALSE)","v":"AHV-Nr.  "},null,"756.9876.5432.10",null,null,{"$f":"VLOOKUP(\"anstellungsdauer\",texte,u_sprache,FALSE)","v":"Anstellungsdauer von"},null,"2021-01-01"]
[null,{"$f":"VLOOKUP(\"jahrgang\",texte,u_sprache,FALSE)","v":"Jahrgang  "},null,1980,null,null,{"$f":"VLOOKUP(\"anstellungsdauer_bis\",texte,u_sprache,FALSE)","v":"Anstellungsdauer bis"},null,"2021-06-12"]
[null,{"$f":"VLOOKUP(\"geschlecht\",texte,u_sprache,FALSE)","v":"Geschlecht  "},null,"Uomo",null,null,{"$f":"VLOOKUP(\"tage\",texte,u_sprache,FALSE)","v":"Tage"},null,{"$f":"Berechnung_einzeln!B7","v":365}]
[null,{"$f":"VLOOKUP(\"basisplan\",texte,u_sprache,FALSE)","v":"Basisplan"},null,"Piano A",null,null,{"$f":"VLOOKUP(\"ahvlohn\",texte,u_sprache,FALSE)","v":"AHV-Lohn während der Anstellung:"},null,55000]
[null,{"$f":"VLOOKUP(\"koa\",texte,u_sprache,FALSE)","v":"Koordinationsabzug"},null,"Con deduzione di coordinamento",null,null,{"$f":"VLOOKUP(\"text4\",texte,u_sprache,FALSE)","v":"Auf Anstellungsdauer bezogen:"}]
[null,{"$f":"VLOOKUP(\"vktarif\",texte,u_sprache,FALSE)","v":"Verwaltungskostentarif"},null,"Tariffa standard",null,null,{"$f":"VLOOKUP(\"text5\",texte,u_sprache,FALSE)","v":"Minimal koordinierter Lohn"},null,{"$f":"Berechnung_einzeln!B15","v":3585}]
[null,{"$f":"VLOOKUP(\"zusatzplan\",texte,u_sprache,FALSE)","v":"Zusatzplan"},null,"Senza piano supplementare",null,null,{"$f":"VLOOKUP(\"ivgrad\",texte,u_sprache,FALSE)","v":"Invaliditätsgrad"},null,0]
[null,null,null,null,null,null,{"$f":"VLOOKUP(\"red_koa\",texte,u_sprache,FALSE)","v":"Reduktion Koordinationsabzug"},null,{"$f":"u_ivreduktion","v":"keine Reduktion"}]
[null,null,null,null,null,null,{"$f":"VLOOKUP(\"koa\",texte,u_sprache,FALSE)","v":"Koordinationsabzug"},null,{"$f":"Berechnung_einzeln!B16","v":25095}]
[null,{"$f":"IF(u_vkrabatt<>0,VLOOKUP(\"hinweis1\",texte,u_sprache,FALSE),\"\")","v":""},null,null,null,null,{"$f":"VLOOKUP(\"vers_lohn\",texte,u_sprache,FALSE)","v":"Versicherter Lohn"},null,{"$f":"Berechnung_einzeln!B19","v":60945}]
[null,{"$f":"IF(u_vkrabatt<>0,VLOOKUP(\"hinweis2\",texte,u_sprache,FALSE),\"\")","v":""}]
[]
[null,{"$f":"VLOOKUP(\"basisplan\",texte,u_sprache,FALSE)","v":"Basisplan"}]
[]
[null,{"$f":"VLOOKUP(\"sparprämie\",texte,u_sprache,FALSE)","v":"Sparbeitrag"},null,{"$f":"VLOOKUP(\"risikoprämie\",texte,u_sprache,FALSE)","v":"Risikobeitrag"},null,{"$f":"VLOOKUP(\"verwkosten\",texte,u_sprache,FALSE)","v":"Verwaltungskosten"},null,{"$f":"VLOOKUP(\"sifo\",texte,u_sprache,FALSE)","v":"Beitrag Sicherheitsfonds"},null,{"$f":"VLOOKUP(\"tot_prämie\",texte,u_sprache,FALSE)","v":"Total Beitrag"}]
[]
[null,"%",{"$f":"VLOOKUP(\"altersgutschrift\",texte,u_sprache,FALSE)","v":"Altersgutschrift"},"%",{"$f":"VLOOKUP(\"beitrag\",texte,u_sprache,FALSE)","v":"Beitrag"},"%",{"$f":"VLOOKUP(\"beitrag\",texte,u_sprache,FALSE)","v":"Beitrag"},"%",{"$f":"VLOOKUP(\"beitrag\",texte,u_sprache,FALSE)","v":"Beitrag"},{"$f":"VLOOKUP(\"tabelle\",texte,u_sprache,FALSE)","v":"Tabelle"},{"$f":"VLOOKUP(\"vers_Lohnes\",texte,u_sprache,FALSE)","v":"in % des vers. Lohnes"},{"$f":"VLOOKUP(\"AHVLohnes\",texte,u_sprache,FALSE)","v":"in % des AHV-Lohnes"},{"$f":"VLOOKUP(\"franken\",texte,u_sprache,FALSE)","v":"CHF"}]
[]
[null,{"$f":"b_sparprämie_satz","v":6.9309999999999997E-2},{"$f":"b_sparprämie","v":4224.1000000000004},{"$f":"b_risiko_satz","v":9.1999999999999998E-3},{"$f":"b_risikoprämie","v":560.70000000000005},{"$f":"Berechnung_einzeln!B40","v":6.0000000000000001E-3},{"$f":"b_vkeff","v":360},{"$f":"b_sifo_satz","v":1.1999999999999999E-3},{"$f":"b_sifo","v":73.099999999999994},{"$f":"b_prämie_tot","v":9.3710000000000002E-2},{"$f":"b_prämie_tot_netto","v":8.5616539502830435E-2},{"$f":"Berechnung_einzeln!B45","v":3.032252440725244E-2},{"$f":"b_prämie_ges","v":5217.9000000000005}]
[]
[null,{"$f":"VLOOKUP(\"zusatzplan\",texte,u_sprache,FALSE)","v":"Zusatzplan"}]
[]
[null,{"$f":"b_sparprämie_satz_z","v":""},{"$f":"b_sparprämie_z","v":0},null,null,null,null,null,null,null,null,null,{"$f":"C37","v":0}]
[]
[null,null,null,null,null,null,null,{"$f":"VLOOKUP(\"tot_prämie\",texte,u_sprache,FALSE)","v":"Total Beitrag"},null,null,null,null,{"$f":"SUM(M33:M37)","v":5217.9000000000005}]
[]
[null,null,null,null,null,null,null,{"$f":"VLOOKUP(\"beitrag_an_max\",texte,u_sprache,FALSE)","v":"Maximaler Beitrag des Arbeitnehmers"},null,null,null,null,{"$f":"M39/2","v":2608.9500000000003}]
[]
[]
[]
[]
[]
[]
[]
[]
[]
[]
[]
[]
[null,null,"Bitte das Tabellenblatt \"Druck\" verwenden!"]

{"sheet":"Druck","index":7,"n_rows":67,"n_cols":15,"rows_kept":67,"cut":false,"hidden":false,"merged":[[7,2,7,14],[23,5,23,6],[28,5,28,6],[23,2,23,4],[15,2,15,4],[15,5,15,6],[12,2,12,4],[12,5,12,6],[13,2,13,4],[13,5,13,6],[14,2,14,4],[14,5,14,6],[20,2,20,4],[20,5,20,6],[16,2,16,4],[16,5,16,6],[35,10,35,11],[35,13,35,14],[38,10,38,11],[54,13,54,14],[48,10,48,11],[51,10,51,11],[43,13,43,14],[22,5,22,6],[29,10,29,11],[29,13,29,14],[32,10,32,11],[32,13,32,14],[69,6,69,14],[64,1,64,15],[65,1,65,15],[66,1,66,15],[63,1,63,15],[60,13,60,14],[47,5,47,6],[21,2,21,4],[51,13,51,14],[58,13,58,14],[48,13,48,14],[42,13,42,14],[41,10,41,11],[41,5,41,6],[54,10,54,11],[42,5,42,6],[22,2,22,4],[21,5,21,6],[38,13,38,14],[42,10,42,11],[43,10,43,11]]}
[]
[]
[]
[]
[]
[]
[]
[null,null,{"$f":"CONCATENATE(VLOOKUP(\"titel1\",texte,u_sprache,FALSE),\" \",p_jahr)","v":"Berechnung der Beiträge an die berufliche Vorsorge 2022"}]
[]
[]
[null,null,{"$f":"VLOOKUP(\"person\",texte,u_sprache,FALSE)","v":"Versicherte Person"},null,null,null,null,null,null,null,{"$f":"VLOOKUP(\"anstellung\",texte,u_sprache,FALSE)","v":"Anstellung"}]
[]
[null,null,{"$f":"VLOOKUP(\"name\",texte,u_sprache,FALSE)","v":"Vorname / Name  "},null,null,{"$f":"u_name","v":"Beispiel"},null,null,null,null,{"$f":"VLOOKUP(\"jahr\",texte,u_sprache,FALSE)","v":"Jahr"},null,null,null,{"$f":"p_jahr","v":2022}]
[null,null,{"$f":"VLOOKUP(\"ahvnr\",texte,u_sprache,FALSE)","v":"AHV-Nr.  "},null,null,{"$f":"u_ahvnr","v":"756.1234.1234.12"},null,null,null,null,{"$f":"VLOOKUP(\"anstellungsdauer\",texte,u_sprache,FALSE)","v":"Anstellungsdauer von"},null,null,null,{"$f":"u_anst_start","v":"2022-01-01"}]
[null,null,{"$f":"VLOOKUP(\"jahrgang\",texte,u_sprache,FALSE)","v":"Jahrgang  "},null,null,{"$f":"u_jahrgang","v":1995},null,null,null,null,{"$f":"VLOOKUP(\"anstellungsdauer_bis\",texte,u_sprache,FALSE)","v":"Anstellungsdauer bis"},null,null,null,{"$f":"u_anst_ende","v":"2022-12-31"}]
[null,null,{"$f":"VLOOKUP(\"geschlecht\",texte,u_sprache,FALSE)","v":"Geschlecht  "},null,null,{"$f":"u_geschlecht1","v":"weiblich"},null,null,null,null,{"$f":"VLOOKUP(\"ahvlohn\",texte,u_sprache,FALSE)","v":"AHV-Lohn während der Anstellung:"},null,null,null,{"$f":"u_lohn","v":86040}]
[null,null,{"$f":"VLOOKUP(\"ivgrad\",texte,u_sprache,FALSE)","v":"Invaliditätsgrad"},null,null,{"$f":"u_ivgrad","v":0}]
[]
[null,null,{"$f":"VLOOKUP(\"pk\",texte,u_sprache,FALSE)","v":"Versicherungslösung"},null,null,null,null,null,null,null,{"$f":"VLOOKUP(\"vers_lohn\",texte,u_sprache,FALSE)","v":"Versicherter Lohn"}]
[]
[null,null,{"$f":"VLOOKUP(\"plan\",texte,u_sprache,FALSE)","v":"Plan"},null,null,{"$f":"CONCATENATE(u_plan1,IF(u_zusatzplan =0,\"\",CONCATENATE(\"/\",u_zusatzplan1)))","v":"Plan A"},null,null,null,null,{"$f":"VLOOKUP(\"text4\",texte,u_sprache,FALSE)","v":"Auf Anstellungsdauer bezogen:"}]
[null,null,{"$f":"VLOOKUP(\"koa\",texte,u_sprache,FALSE)","v":"Koordinationsabzug"},null,null,{"$f":"u_plan_koa1","v":"mit Koordinationsabzug"},null,null,null,null,{"$f":"VLOOKUP(\"text5\",texte,u_sprache,FALSE)","v":"Minimal koordinierter Lohn"},null,null,null,{"$f":"Berechnung_einzeln!$B$15","v":3585}]
[null,null,{"$f":"VLOOKUP(\"vktarif\",texte,u_sprache,FALSE)","v":"Verwaltungskostentarif"},null,null,{"$f":"u_vkrabatt1","v":"Standardtarif"},null,null,null,null,{"$f":"VLOOKUP(\"koa\",texte,u_sprache,FALSE)","v":"Koordinationsabzug"},null,null,null,{"$f":"Berechnung_einzeln!$B$16","v":25095}]
[null,null,{"$f":"VLOOKUP(\"zusatzplan\",texte,u_sprache,FALSE)","v":"Zusatzplan"},null,null,{"$f":"u_zusatzplan1","v":"Kein Zusatzplan"},null,null,null,null,{"$f":"VLOOKUP(\"vers_lohn\",texte,u_sprache,FALSE)","v":"Versicherter Lohn"},null,null,null,{"$f":"b_koordLohn","v":60945}]
[null,null,null,null,null,null,null,null,null,null,{"$f":"VLOOKUP(\"red_koa\",texte,u_sprache,FALSE)","v":"Reduktion Koordinationsabzug"},null,null,null,{"$f":"u_ivreduktion","v":"keine Reduktion"}]
[]
[]
[null,null,{"$f":"VLOOKUP(\"basisplan\",texte,u_sprache,FALSE)","v":"Basisplan"}]
[]
[null,null,{"$f":"VLOOKUP(\"sparprämie\",texte,u_sprache,FALSE)","v":"Sparbeitrag"},null,null,null,null,null,null,null,{"$f":"b_sparprämie_satz","v":6.9309999999999997E-2},null,null,{"$f":"b_sparprämie","v":4224.1000000000004}]
[]
[]
[null,null,{"$f":"VLOOKUP(\"risikoprämie\",texte,u_sprache,FALSE)","v":"Risikobeitrag"},null,null,null,null,null,null,null,{"$f":"Berechnung_einzeln!B42","v":9.1999999999999998E-3},null,null,{"$f":"b_risikoprämie","v":560.70000000000005}]
[]
[]
[null,null,{"$f":"VLOOKUP(\"verwkosten\",texte,u_sprache,FALSE)","v":"Verwaltungskosten"},null,null,null,null,null,null,null,{"$f":"Berechnung_einzeln!B40","v":6.0000000000000001E-3},null,null,{"$f":"b_vkeff","v":360}]
[]
[]
[null,null,{"$f":"VLOOKUP(\"sifo\",texte,u_sprache,FALSE)","v":"Beitrag Sicherheitsfonds"},null,null,null,null,null,null,null,{"$f":"b_sifo_satz","v":1.1999999999999999E-3},null,null,{"$f":"b_sifo","v":73.099999999999994}]
[]
[]
[null,null,null,null,null,{"$f":"VLOOKUP(\"AHVLohnes\",texte,u_sprache,FALSE)","v":"in % des AHV-Lohnes"},null,null,null,null,{"$f":"Berechnung_einzeln!B45","v":3.032252440725244E-2}]
[null,null,{"$f":"VLOOKUP(\"tot_prämie\",texte,u_sprache,FALSE)","v":"Total Beitrag"},null,null,{"$f":"VLOOKUP(\"vers_Lohnes\",texte,u_sprache,FALSE)","v":"in % des vers. Lohnes"},null,null,null,null,{"$f":"b_prämie_tot_netto","v":8.5616539502830435E-2},null,null,{"$f":"b_prämie_ges","v":5217.9000000000005}]
[]
[]
[]
[null,null,{"$f":"VLOOKUP(\"zusatzplan\",texte,u_sprache,FALSE)","v":"Zusatzplan"}]
[]
[null,null,{"$f":"IF(u_zusatzplan=0,VLOOKUP(\"plan0\",texte,u_sprache,FALSE),VLOOKUP(\"sparprämie\",texte,u_sprache,FALSE))","v":"Kein Zusatzplan"},null,null,null,null,null,null,null,{"$f":"Berechnung_einzeln!B53","v":""},null,null,{"$f":"Berechnung_einzeln!B54","v":0}]
[]
[]
[null,null,{"$f":"IF(u_zusatzplan=0,VLOOKUP(\"plan0\",texte,u_sprache,FALSE),VLOOKUP(\"Risikoprämie\",texte,u_sprache,FALSE))","v":"Kein Zusatzplan"},null,null,null,null,null,null,null,{"$f":"Berechnung_einzeln!B56","v":""},null,null,{"$f":"Berechnung_einzeln!B57","v":0}]
[]
[]
[null,null,{"$f":"VLOOKUP(\"tot_prämie\",texte,u_sprache,FALSE)","v":"Total Beitrag"},null,null,null,null,null,null,null,null,null,null,{"$f":"SUM(N49,N52)","v":0}]
[]
[]
[]
[null,null,"Total",null,null,null,null,null,null,null,null,null,null,{"$f":"IF(N52=\"\",N43+N49,N43+N49+N52)","v":5217.9000000000005}]
[]
[null,null,{"$f":"VLOOKUP(\"beitrag_an_max\",texte,u_sprache,FALSE)","v":"Maximaler Beitrag des Arbeitnehmers"},null,null,null,null,null,null,null,null,null,null,{"$f":"N59/2","v":2608.9500000000003}]
[]
[]
[null,{"$f":"IF(u_vkrabatt<>0,CONCATENATE(VLOOKUP(\"hinweis1\",texte,u_sprache,FALSE),\" \",VLOOKUP(\"hinweis2\",texte,u_sprache,FALSE)),\"\")","v":""}]
[null,{"$f":"CONCATENATE(VLOOKUP(\"text1\",texte,u_sprache,FALSE),\" \",VLOOKUP(\"text1a\",texte,u_sprache,FALSE))","v":"Die Beitragsberechnung beruht auf den erfassten Daten. Massgebend ist schlussendlich die Prämienrechnung der Agrisano Pencas, welche aufgrund der effektiv gemeldeten Löhne erstellt wird. Sie beinhaltet zudem einen Zins für das nachschüssige Inkasso."}]
[null,{"$f":"VLOOKUP(\"text2\",texte,u_sprache,FALSE)","v":"Bei Fragen zur Prämienrechnung wenden Sie sich bitte an die Agrisano Stiftung Globalversicherung (Tel. 056 461 78 55).\nFür die Berechnung der Beiträge von (teil-)invaliden Arbeitnehmenden nehmen Sie bitte Kontakt mit der Agrisano Pencas (Tel. 056 461 78 11) auf."}]
[null,{"$f":"VLOOKUP(\"text3\",texte,u_sprache,FALSE)","v":"Die Versicherungspflicht gilt nur für Anstellungsverhältnisse, die für mehr als 3 Monate eingegangen worden sind (gilt auch, wenn das Arbeitsverhältnis zwischenzeitlich maximal 3 Monate unterbrochen wird, die Gesamtbeschäftigungsdauer aber mehr als 3 Monate beträgt)."}]

{"sheet":"Erfassung_Bestand","index":8,"n_rows":1013,"n_cols":7,"rows_kept":1013,"cut":false,"hidden":true,"merged":[[2,5,2,6],[3,5,3,6],[0,0,0,6]]}
[{"$f":"VLOOKUP(\"titel_bestandesrechner\",texte,u_sprache,FALSE)","v":"Bestandesrechner Agrisano Pencas"}]
[]
[{"$f":"VLOOKUP(\"basisplan\",texte,u_sprache,FALSE)","v":"Basisplan"},"Plan A",null,null,{"$f":"VLOOKUP(\"name_betrieb\",texte,u_sprache,FALSE)","v":"Name Betrieb"}]
[{"$f":"VLOOKUP(\"koa\",texte,u_sprache,FALSE)","v":"Koordinationsabzug"},"mit Koordinationsabzug",null,null,{"$f":"VLOOKUP(\"adresse\",texte,u_sprache,FALSE)","v":"Adresse"}]
[{"$f":"VLOOKUP(\"zusatzplan\",texte,u_sprache,FALSE)","v":"Zusatzplan"},"Kein Zusatzplan"]
[{"$f":"VLOOKUP(\"vktarif\",texte,u_sprache,FALSE)","v":"Verwaltungskostentarif"},"Standardtarif"]
[{"$f":"VLOOKUP(\"beitrag_an\",texte,u_sprache,FALSE)","v":"Beitrag Arbeitnehmer"},0.5]
[]
[{"$f":"VLOOKUP(\"hinweis_erf_bestand\",texte,u_sprache,FALSE)","v":"Hinweis: Um invalide Personen zu berechnen, bitte den Einzelrechner verwenden."}]
[]
[{"$f":"VLOOKUP(\"name\",texte,u_sprache,FALSE)","v":"Vorname / Name  "},{"$f":"VLOOKUP(\"geschlecht\",texte,u_sprache,FALSE)","v":"Geschlecht  "},{"$f":"VLOOKUP(\"jahrgang\",texte,u_sprache,FALSE)","v":"Jahrgang  "},{"$f":"VLOOKUP(\"anstellungsdauer_k\",texte,u_sprache,FALSE)","v":"Anst. von"},{"$f":"VLOOKUP(\"anstellungsdauer_bis_k\",texte,u_sprache,FALSE)","v":"Anst. bis"},{"$f":"VLOOKUP(\"ahvlohn_k\",texte,u_sprache,FALSE)","v":"AHV-Lohn"},{"$f":"VLOOKUP(\"zusatzplan\",texte,u_sprache,FALSE)","v":"Zusatzplan"}]
[null,null,null,null,null,null,{"$f":"be_zusatzplan","v":"Kein Zusatzplan"}]
[null,null,null,null,null,null,"Kein Zusatzplan"]
[null,null,null,null,null,null,"Kein Zusatzplan"]
[null,null,null,null,null,null,"Kein Zusatzplan"]
[null,null,null,null,null,null,"Kein Zusatzplan"]
[null,null,null,null,null,null,"Kein Zusatzplan"]
[null,null,null,null,null,null,"Kein Zusatzplan"]
[null,null,null,null,null,null,"Kein Zusatzplan"]
[null,null,null,null,null,null,"Kein Zusatzplan"]
[null,null,null,null,null,null,"Kein Zusatzplan"]
[null,null,null,null,null,null,"Kein Zusatzplan"]
[null,null,null,null,null,null,"Kein Zusatzplan"]
[null,null,null,null,null,null,"Kein Zusatzplan"]
[null,null,null,null,null,null,"Kein Zusatzplan"]
[null,null,null,null,null,null,"Kein Zusatzplan"]
[null,null,null,null,null,null,"Kein Zusatzplan"]
[null,null,null,null,null,null,"Kein Zusatzplan"]
[null,null,null,null,null,null,"Kein Zusatzplan"]
[null,null,null,null,null,null,"Kein Zusatzplan"]
[null,null,null,null,null,null,"Kein Zusatzplan"]
[null,null,null,null,null,null,"Kein Zusatzplan"]
[null,null,null,null,null,null,"Kein Zusatzplan"]
[null,null,null,null,null,null,"Kein Zusatzplan"]
[null,null,null,null,null,null,"Kein Zusatzplan"]
[null,null,null,null,null,null,"Kein Zusatzplan"]
[null,null,null,null,null,null,"Kein Zusatzplan"]
[null,null,null,null,null,null,"Kein Zusatzplan"]
[null,null,null,null,null,null,"Kein Zusatzplan"]
[null,null,null,null,null,null,"Kein Zusatzplan"]
[null,null,null,null,null,null,"Kein Zusatzplan"]
[null,null,null,null,null,null,"Kein Zusatzplan"]
[null,null,null,null,null,null,"Kein Zusatzplan"]
[null,null,null,null,null,null,{"$f":"be_zusatzplan","v":"Kein Zusatzplan"}]
[null,null,null,null,null,null,"Kein Zusatzplan"]
[null,null,null,null,null,null,"Kein Zusatzplan"]
[null,null,null,null,null,null,"Kein Zusatzplan"]
[null,null,null,null,null,null,"Kein Zusatzplan"]
[null,null,null,null,null,null,"Kein Zusatzplan"]
[null,null,null,null,null,null,"Kein Zusatzplan"]
[null,null,null,null,null,null,"Kein Zusatzplan"]
[null,null,null,null,null,null,"Kein Zusatzplan"]
[null,null,null,null,null,null,"Kein Zusatzplan"]
[null,null,null,null,null,null,"Kein Zusatzplan"]
[null,null,null,null,null,null,"Kein Zusatzplan"]
[null,null,null,null,null,null,"Kein Zusatzplan"]
[null,null,null,null,null,null,"Kein Zusatzplan"]
[null,null,null,null,null,null,"Kein Zusatzplan"]
[null,null,null,null,null,null,"Kein Zusatzplan"]
[null,null,null,null,null,null,"Kein Zusatzplan"]
[null,null,null,null,null,null,"Kein Zusatzplan"]
[null,null,null,null,null,null,"Kein Zusatzplan"]
[null,null,null,null,null,null,"Kein Zusatzplan"]
[null,null,null,null,null,null,"Kein Zusatzplan"]
[null,null,null,null,null,null,"Kein Zusatzplan"]
[null,null,null,null,null,null,"Kein Zusatzplan"]
[null,null,null,null,null,null,"Kein Zusatzplan"]
[null,null,null,null,null,null,"Kein Zusatzplan"]
[null,null,null,null,null,null,"Kein Zusatzplan"]
[null,null,null,null,null,null,"Kein Zusatzplan"]
[null,null,null,null,null,null,{"$f":"be_zusatzplan","v":"Kein Zusatzplan"}]
[null,null,null,null,null,null,"Kein Zusatzplan"]
[null,null,null,null,null,null,"Kein Zusatzplan"]
[null,null,null,null,null,null,"Kein Zusatzplan"]
[null,null,null,null,null,null,"Kein Zusatzplan"]
[null,null,null,null,null,null,{"$f":"be_zusatzplan","v":"Kein Zusatzplan"}]
[null,null,null,null,null,null,"Kein Zusatzplan"]
[null,null,null,null,null,null,"Kein Zusatzplan"]
[null,null,null,null,null,null,"Kein Zusatzplan"]
[null,null,null,null,null,null,"Kein Zusatzplan"]
[null,null,null,null,null,null,"Kein Zusatzplan"]
[null,null,null,null,null,null,"Kein Zusatzplan"]
[null,null,null,null,null,null,"Kein Zusatzplan"]
[null,null,null,null,null,null,"Kein Zusatzplan"]
[null,null,null,null,null,null,"Kein Zusatzplan"]
[null,null,null,null,null,null,"Kein Zusatzplan"]
[null,null,null,null,null,null,"Kein Zusatzplan"]
[null,null,null,null,null,null,"Kein Zusatzplan"]
[null,null,null,null,null,null,"Kein Zusatzplan"]
[null,null,null,null,null,null,"Kein Zusatzplan"]
[null,null,null,null,null,null,"Kein Zusatzplan"]
[null,null,null,null,null,null,"Kein Zusatzplan"]
[null,null,null,null,null,null,"Kein Zusatzplan"]
[null,null,null,null,null,null,"Kein Zusatzplan"]
[null,null,null,null,null,null,"Kein Zusatzplan"]
[null,null,null,null,null,null,"Kein Zusatzplan"]
[null,null,null,null,null,null,"Kein Zusatzplan"]
[null,null,null,null,null,null,"Kein Zusatzplan"]
[null,null,null,null,null,null,"Kein Zusatzplan"]
[null,null,null,null,null,null,"Kein Zusatzplan"]
[null,null,null,null,null,null,"Kein Zusatzplan"]
[null,null,null,null,null,null,"Kein Zusatzplan"]
[null,null,null,null,null,null,"Kein Zusatzplan"]
[null,null,null,null,null,null,"Kein Zusatzplan"]
[null,null,null,null,null,null,"Kein Zusatzplan"]
[null,null,null,null,null,null,"Kein Zusatzplan"]
[null,null,null,null,null,null,"Kein Zusatzplan"]
[null,null,null,null,null,null,"Kein Zusatzplan"]
[null,null,null,null,null,null,"Kein Zusatzplan"]
[null,null,null,null,null,null,"Kein Zusatzplan"]
[null,null,null,null,null,null,"Kein Zusatzplan"]
[null,null,null,null,null,null,"Kein Zusatzplan"]
[null,null,null,null,null,null,"Kein Zusatzplan"]
[null,null,null,null,null,null,"Kein Zusatzplan"]
[null,null,null,null,null,null,"Kein Zusatzplan"]
[null,null,null,null,null,null,"Kein Zusatzplan"]
[null,null,null,null,null,null,"Kein Zusatzplan"]
[null,null,null,null,null,null,"Kein Zusatzplan"]
[null,null,null,null,null,null,"Kein Zusatzplan"]
[null,null,null,null,null,null,"Kein Zusatzplan"]
[null,null,null,null,null,null,"Kein Zusatzplan"]
[null,null,null,null,null,null,"Kein Zusatzplan"]
[null,null,null,null,null,null,"Kein Zusatzplan"]
[null,null,null,null,null,null,"Kein Zusatzplan"]
[null,null,null,null,null,null,"Kein Zusatzplan"]
[null,null,null,null,null,null,"Kein Zusatzplan"]
[null,null,null,null,null,null,"Kein Zusatzplan"]
[null,null,null,null,null,null,"Kein Zusatzplan"]
[null,null,null,null,null,null,"Kein Zusatzplan"]
[null,null,null,null,null,null,"Kein Zusatzplan"]
[null,null,null,null,null,null,"Kein Zusatzplan"]
[null,null,null,null,null,null,"Kein Zusatzplan"]
[null,null,null,null,null,null,"Kein Zusatzplan"]
[null,null,null,null,null,null,"Kein Zusatzplan"]
[null,null,null,null,null,null,"Kein Zusatzplan"]
[null,null,null,null,null,null,"Kein Zusatzplan"]
[null,null,null,null,null,null,"Kein Zusatzplan"]
[null,null,null,null,null,null,"Kein Zusatzplan"]
[null,null,null,null,null,null,"Kein Zusatzplan"]
[null,null,null,null,null,null,{"$f":"be_zusatzplan","v":"Kein Zusatzplan"}]
[null,null,null,null,null,null,"Kein Zusatzplan"]
[null,null,null,null,null,null,"Kein Zusatzplan"]
[null,null,null,null,null,null,"Kein Zusatzplan"]
[null,null,null,null,null,null,"Kein Zusatzplan"]
[null,null,null,null,null,null,"Kein Zusatzplan"]
[null,null,null,null,null,null,"Kein Zusatzplan"]
[null,null,null,null,null,null,"Kein Zusatzplan"]
[null,null,null,null,null,null,"Kein Zusatzplan"]
[null,null,null,null,null,null,"Kein Zusatzplan"]
[null,null,null,null,null,null,"Kein Zusatzplan"]
[null,null,null,null,null,null,"Kein Zusatzplan"]
[null,null,null,null,null,null,"Kein Zusatzplan"]
[null,null,null,null,null,null,"Kein Zusatzplan"]
[null,null,null,null,null,null,"Kein Zusatzplan"]
[null,null,null,null,null,null,"Kein Zusatzplan"]
[null,null,null,null,null,null,"Kein Zusatzplan"]
[null,null,null,null,null,null,"Kein Zusatzplan"]
[null,null,null,null,null,null,"Kein Zusatzplan"]
[null,null,null,null,null,null,"Kein Zusatzplan"]
[null,null,null,null,null,null,"Kein Zusatzplan"]
[null,null,null,null,null,null,"Kein Zusatzplan"]
[null,null,null,null,null,null,"Kein Zusatzplan"]
[null,null,null,null,null,null,"Kein Zusatzplan"]
[null,null,null,null,null,null,"Kein Zusatzplan"]
[null,null,null,null,null,null,"Kein Zusatzplan"]
[null,null,null,null,null,null,"Kein Zusatzplan"]
[null,null,null,null,null,null,"Kein Zusatzplan"]
[null,null,null,null,null,null,"Kein Zusatzplan"]
[null,null,null,null,null,null,"Kein Zusatzplan"]
[null,null,null,null,null,null,"Kein Zusatzplan"]
[null,null,null,null,null,null,"Kein Zusatzplan"]
[null,null,null,null,null,null,"Kein Zusatzplan"]
[null,null,null,null,null,null,"Kein Zusatzplan"]
[null,null,null,null,null,null,"Kein Zusatzplan"]
[null,null,null,null,null,null,"Kein Zusatzplan"]
[null,null,null,null,null,null,"Kein Zusatzplan"]
[null,null,null,null,null,null,"Kein Zusatzplan"]
[null,null,null,null,null,null,"Kein Zusatzplan"]
[null,null,null,null,null,null,"Kein Zusatzplan"]
[null,null,null,null,null,null,"Kein Zusatzplan"]
[null,null,null,null,null,null,"Kein Zusatzplan"]
[null,null,null,null,null,null,"Kein Zusatzplan"]
[null,null,null,null,null,null,"Kein Zusatzplan"]
[null,null,null,null,null,null,"Kein Zusatzplan"]
[null,null,null,null,null,null,"Kein Zusatzplan"]
[null,null,null,null,null,null,"Kein Zusatzplan"]
[null,null,null,null,null,null,"Kein Zusatzplan"]
[null,null,null,null,null,null,"Kein Zusatzplan"]
[null,null,null,null,null,null,"Kein Zusatzplan"]
[null,null,null,null,null,null,"Kein Zusatzplan"]
[null,null,null,null,null,null,"Kein Zusatzplan"]
[null,null,null,null,null,null,"Kein Zusatzplan"]
[null,null,null,null,null,null,"Kein Zusatzplan"]
[null,null,null,null,null,null,"Kein Zusatzplan"]
[null,null,null,null,null,null,"Kein Zusatzplan"]
[null,null,null,null,null,null,"Kein Zusatzplan"]
[null,null,null,null,null,null,"Kein Zusatzplan"]
[null,null,null,null,null,null,"Kein Zusatzplan"]
[null,null,null,null,null,null,"Kein Zusatzplan"]
[null,null,null,null,null,null,"Kein Zusatzplan"]
[null,null,null,null,null,null,"Kein Zusatzplan"]
[null,null,null,null,null,null,"Kein Zusatzplan"]
[null,null,null,null,null,null,"Kein Zusatzplan"]
[null,null,null,null,null,null,{"$f":"be_zusatzplan","v":"Kein Zusatzplan"}]
[null,null,null,null,null,null,"Kein Zusatzplan"]
[null,null,null,null,null,null,"Kein Zusatzplan"]
[null,null,null,null,null,null,"Kein Zusatzplan"]
[null,null,null,null,null,null,"Kein Zusatzplan"]
[null,null,null,null,null,null,"Kein Zusatzplan"]
[null,null,null,null,null,null,"Kein Zusatzplan"]
[null,null,null,null,null,null,"Kein Zusatzplan"]
[null,null,null,null,null,null,"Kein Zusatzplan"]
[null,null,null,null,null,null,"Kein Zusatzplan"]
[null,null,null,null,null,null,"Kein Zusatzplan"]
[null,null,null,null,null,null,"Kein Zusatzplan"]
[null,null,null,null,null,null,"Kein Zusatzplan"]
[null,null,null,null,null,null,"Kein Zusatzplan"]
[null,null,null,null,null,null,"Kein Zusatzplan"]
[null,null,null,null,null,null,"Kein Zusatzplan"]
[null,null,null,null,null,null,"Kein Zusatzplan"]
[null,null,null,null,null,null,"Kein Zusatzplan"]
[null,null,null,null,null,null,"Kein Zusatzplan"]
[null,null,null,null,null,null,"Kein Zusatzplan"]
[null,null,null,null,null,null,"Kein Zusatzplan"]
[null,null,null,null,null,null,"Kein Zusatzplan"]
[null,null,null,null,null,null,"Kein Zusatzplan"]
[null,null,null,null,null,null,"Kein Zusatzplan"]
[null,null,null,null,null,null,"Kein Zusatzplan"]
[null,null,null,null,null,null,"Kein Zusatzplan"]
[null,null,null,null,null,null,"Kein Zusatzplan"]
[null,null,null,null,null,null,"Kein Zusatzplan"]
[null,null,null,null,null,null,"Kein Zusatzplan"]
[null,null,null,null,null,null,"Kein Zusatzplan"]
[null,null,null,null,null,null,"Kein Zusatzplan"]
[null,null,null,null,null,null,"Kein Zusatzplan"]
[null,null,null,null,null,null,"Kein Zusatzplan"]
[null,null,null,null,null,null,"Kein Zusatzplan"]
[null,null,null,null,null,null,"Kein Zusatzplan"]
[null,null,null,null,null,null,"Kein Zusatzplan"]
[null,null,null,null,null,null,"Kein Zusatzplan"]
[null,null,null,null,null,null,"Kein Zusatzplan"]
[null,null,null,null,null,null,"Kein Zusatzplan"]
[null,null,null,null,null,null,"Kein Zusatzplan"]
[null,null,null,null,null,null,"Kein Zusatzplan"]
[null,null,null,null,null,null,"Kein Zusatzplan"]
[null,null,null,null,null,null,"Kein Zusatzplan"]
[null,null,null,null,null,null,"Kein Zusatzplan"]
[null,null,null,null,null,null,"Kein Zusatzplan"]
[null,null,null,null,null,null,"Kein Zusatzplan"]
[null,null,null,null,null,null,"Kein Zusatzplan"]
[null,null,null,null,null,null,"Kein Zusatzplan"]
[null,null,null,null,null,null,"Kein Zusatzplan"]
[null,null,null,null,null,null,"Kein Zusatzplan"]
[null,null,null,null,null,null,"Kein Zusatzplan"]
[null,null,null,null,null,null,"Kein Zusatzplan"]
[null,null,null,null,null,null,"Kein Zusatzplan"]
[null,null,null,null,null,null,"Kein Zusatzplan"]
[null,null,null,null,null,null,"Kein Zusatzplan"]
[null,null,null,null,null,null,"Kein Zusatzplan"]
[null,null,null,null,null,null,"Kein Zusatzplan"]
[null,null,null,null,null,null,"Kein Zusatzplan"]
[null,null,null,null,null,null,"Kein Zusatzplan"]
[null,null,null,null,null,null,"Kein Zusatzplan"]
[null,null,null,null,null,null,"Kein Zusatzplan"]
[null,null,null,null,null,null,"Kein Zusatzplan"]
[null,null,null,null,null,null,"Kein Zusatzplan"]
[null,null,null,null,null,null,"Kein Zusatzplan"]
[null,null,null,null,null,null,{"$f":"be_zusatzplan","v":"Kein Zusatzplan"}]
[null,null,null,null,null,null,"Kein Zusatzplan"]
[null,null,null,null,null,null,"Kein Zusatzplan"]
[null,null,null,null,null,null,"Kein Zusatzplan"]
[null,null,null,null,null,null,"Kein Zusatzplan"]
[null,null,null,null,null,null,"Kein Zusatzplan"]
[null,null,null,null,null,null,"Kein Zusatzplan"]
[null,null,null,null,null,null,"Kein Zusatzplan"]
[null,null,null,null,null,null,"Kein Zusatzplan"]
[null,null,null,null,null,null,"Kein Zusatzplan"]
[null,null,null,null,null,null,"Kein Zusatzplan"]
[null,null,null,null,null,null,"Kein Zusatzplan"]
[null,null,null,null,null,null,"Kein Zusatzplan"]
[null,null,null,null,null,null,"Kein Zusatzplan"]
[null,null,null,null,null,null,"Kein Zusatzplan"]
[null,null,null,null,null,null,"Kein Zusatzplan"]
[null,null,null,null,null,null,"Kein Zusatzplan"]
[null,null,null,null,null,null,"Kein Zusatzplan"]
[null,null,null,null,null,null,"Kein Zusatzplan"]
[null,null,null,null,null,null,"Kein Zusatzplan"]
[null,null,null,null,null,null,"Kein Zusatzplan"]
[null,null,null,null,null,null,"Kein Zusatzplan"]
[null,null,null,null,null,null,"Kein Zusatzplan"]
[null,null,null,null,null,null,"Kein Zusatzplan"]
[null,null,null,null,null,null,"Kein Zusatzplan"]
[null,null,null,null,null,null,"Kein Zusatzplan"]
[null,null,null,null,null,null,"Kein Zusatzplan"]
[null,null,null,null,null,null,"Kein Zusatzplan"]
[null,null,null,null,null,null,"Kein Zusatzplan"]
[null,null,null,null,null,null,"Kein Zusatzplan"]
[null,null,null,null,null,null,"Kein Zusatzplan"]
[null,null,null,null,null,null,"Kein Zusatzplan"]
[null,null,null,null,null,null,"Kein Zusatzplan"]
[null,null,null,null,null,null,"Kein Zusatzplan"]
[null,null,null,null,null,null,"Kein Zusatzplan"]
[null,null,null,null,null,null,"Kein Zusatzplan"]
[null,null,null,null,null,null,"Kein Zusatzplan"]
[null,null,null,null,null,null,"Kein Zusatzplan"]
[null,null,null,null,null,null,"Kein Zusatzplan"]
[null,null,null,null,null,null,"Kein Zusatzplan"]
[null,null,null,null,null,null,"Kein Zusatzplan"]
[null,null,null,null,null,null,"Kein Zusatzplan"]
[null,null,null,null,null,null,"Kein Zusatzplan"]
[null,null,null,null,null,null,"Kein Zusatzplan"]
[null,null,null,null,null,null,"Kein Zusatzplan"]
[null,null,null,null,null,null,"Kein Zusatzplan"]
[null,null,null,null,null,null,"Kein Zusatzplan"]
[null,null,null,null,null,null,"Kein Zusatzplan"]
[null,null,null,null,null,null,"Kein Zusatzplan"]
[null,null,null,null,null,null,"Kein Zusatzplan"]
[null,null,null,null,null,null,"Kein Zusatzplan"]
[null,null,null,null,null,null,"Kein Zusatzplan"]
[null,null,null,null,null,null,"Kein Zusatzplan"]
[null,null,null,null,null,null,"Kein Zusatzplan"]
[null,null,null,null,null,null,"Kein Zusatzplan"]
[null,null,null,null,null,null,"Kein Zusatzplan"]
[null,null,null,null,null,null,"Kein Zusatzplan"]
[null,null,null,null,null,null,"Kein Zusatzplan"]
[null,null,null,null,null,null,"Kein Zusatzplan"]
[null,null,null,null,null,null,"Kein Zusatzplan"]
[null,null,null,null,null,null,"Kein Zusatzplan"]
[null,null,null,null,null,null,"Kein Zusatzplan"]
[null,null,null,null,null,null,"Kein Zusatzplan"]
[null,null,null,null,null,null,"Kein Zusatzplan"]
[null,null,null,null,null,null,{"$f":"be_zusatzplan","v":"Kein Zusatzplan"}]
[null,null,null,null,null,null,"Kein Zusatzplan"]
[null,null,null,null,null,null,"Kein Zusatzplan"]
[null,null,null,null,null,null,"Kein Zusatzplan"]
[null,null,null,null,null,null,"Kein Zusatzplan"]
[null,null,null,null,null,null,"Kein Zusatzplan"]
[null,null,null,null,null,null,"Kein Zusatzplan"]
[null,null,null,null,null,null,"Kein Zusatzplan"]
[null,null,null,null,null,null,"Kein Zusatzplan"]
[null,null,null,null,null,null,"Kein Zusatzplan"]
[null,null,null,null,null,null,"Kein Zusatzplan"]
[null,null,null,null,null,null,"Kein Zusatzplan"]
[null,null,null,null,null,null,"Kein Zusatzplan"]
[null,null,null,null,null,null,"Kein Zusatzplan"]
[null,null,null,null,null,null,"Kein Zusatzplan"]
[null,null,null,null,null,null,"Kein Zusatzplan"]
[null,null,null,null,null,null,"Kein Zusatzplan"]
[null,null,null,null,null,null,"Kein Zusatzplan"]
[null,null,null,null,null,null,"Kein Zusatzplan"]
[null,null,null,null,null,null,"Kein Zusatzplan"]
[null,null,null,null,null,null,"Kein Zusatzplan"]
[null,null,null,null,null,null,"Kein Zusatzplan"]
[null,null,null,null,null,null,"Kein Zusatzplan"]
[null,null,null,null,null,null,"Kein Zusatzplan"]
[null,null,null,null,null,null,"Kein Zusatzplan"]
[null,null,null,null,null,null,"Kein Zusatzplan"]
[null,null,null,null,null,null,"Kein Zusatzplan"]
[null,null,null,null,null,null,"Kein Zusatzplan"]
[null,null,null,null,null,null,"Kein Zusatzplan"]
[null,null,null,null,null,null,"Kein Zusatzplan"]
[null,null,null,null,null,null,"Kein Zusatzplan"]
[null,null,null,null,null,null,"Kein Zusatzplan"]
[null,null,null,null,null,null,"Kein Zusatzplan"]
[null,null,null,null,null,null,"Kein Zusatzplan"]
[null,null,null,null,null,null,"Kein Zusatzplan"]
[null,null,null,null,null,null,"Kein Zusatzplan"]
[null,null,null,null,null,null,"Kein Zusatzplan"]
[null,null,null,null,null,null,"Kein Zusatzplan"]
[null,null,null,null,null,null,"Kein Zusatzplan"]
[null,null,null,null,null,null,"Kein Zusatzplan"]
[null,null,null,null,null,null,"Kein Zusatzplan"]
[null,null,null,null,null,null,"Kein Zusatzplan"]
[null,null,null,null,null,null,"Kein Zusatzplan"]
[null,null,null,null,null,null,"Kein Zusatzplan"]
[null,null,null,null,null,null,"Kein Zusatzplan"]
[null,null,null,null,null,null,"Kein Zusatzplan"]
[null,null,null,null,null,null,"Kein Zusatzplan"]
[null,null,null,null,null,null,"Kein Zusatzplan"]
[null,null,null,null,null,null,"Kein Zusatzplan"]
[null,null,null,null,null,null,"Kein Zusatzplan"]
[null,null,null,null,null,null,"Kein Zusatzplan"]
[null,null,null,null,null,null,"Kein Zusatzplan"]
[null,null,null,null,null,null,"Kein Zusatzplan"]
[null,null,null,null,null,null,"Kein Zusatzplan"]
[null,null,null,null,null,null,"Kein Zusatzplan"]
[null,null,null,null,null,null,"Kein Zusatzplan"]
[null,null,null,null,null,null,"Kein Zusatzplan"]
[null,null,null,null,null,null,"Kein Zusatzplan"]
[null,null,null,null,null,null,"Kein Zusatzplan"]
[null,null,null,null,null,null,"Kein Zusatzplan"]
[null,null,null,null,null,null,"Kein Zusatzplan"]
[null,null,null,null,null,null,"Kein Zusatzplan"]
[null,null,null,null,null,null,"Kein Zusatzplan"]
[null,null,null,null,null,null,"Kein Zusatzplan"]
[null,null,null,null,null,null,{"$f":"be_zusatzplan","v":"Kein Zusatzplan"}]
[null,null,null,null,null,null,"Kein Zusatzplan"]
[null,null,null,null,null,null,"Kein Zusatzplan"]
[null,null,null,null,null,null,"Kein Zusatzplan"]
[null,null,null,null,null,null,"Kein Zusatzplan"]
[null,null,null,null,null,null,"Kein Zusatzplan"]
[null,null,null,null,null,null,"Kein Zusatzplan"]
[null,null,null,null,null,null,"Kein Zusatzplan"]
[null,null,null,null,null,null,"Kein Zusatzplan"]
[null,null,null,null,null,null,"Kein Zusatzplan"]
[null,null,null,null,null,null,"Kein Zusatzplan"]
[null,null,null,null,null,null,"Kein Zusatzplan"]
[null,null,null,null,null,null,"Kein Zusatzplan"]
[null,null,null,null,null,null,"Kein Zusatzplan"]
[null,null,null,null,null,null,"Kein Zusatzplan"]
[null,null,null,null,null,null,"Kein Zusatzplan"]
[null,null,null,null,null,null,"Kein Zusatzplan"]
[null,null,null,null,null,null,"Kein Zusatzplan"]
[null,null,null,null,null,null,"Kein Zusatzplan"]
[null,null,null,null,null,null,"Kein Zusatzplan"]
[null,null,null,null,null,null,"Kein Zusatzplan"]
[null,null,null,null,null,null,"Kein Zusatzplan"]
[null,null,null,null,null,null,"Kein Zusatzplan"]
[null,null,null,null,null,null,"Kein Zusatzplan"]
[null,null,null,null,null,null,"Kein Zusatzplan"]
[null,null,null,null,null,null,"Kein Zusatzplan"]
[null,null,null,null,null,null,"Kein Zusatzplan"]
[null,null,null,null,null,null,"Kein Zusatzplan"]
[null,null,null,null,null,null,"Kein Zusatzplan"]
[null,null,null,null,null,null,"Kein Zusatzplan"]
[null,null,null,null,null,null,"Kein Zusatzplan"]
[null,null,null,null,null,null,"Kein Zusatzplan"]
[null,null,null,null,null,null,"Kein Zusatzplan"]
[null,null,null,null,null,null,"Kein Zusatzplan"]
[null,null,null,null,null,null,"Kein Zusatzplan"]
[null,null,null,null,null,null,"Kein Zusatzplan"]
[null,null,null,null,null,null,"Kein Zusatzplan"]
[null,null,null,null,null,null,"Kein Zusatzplan"]
[null,null,null,null,null,null,"Kein Zusatzplan"]
[null,null,null,null,null,null,"Kein Zusatzplan"]
[null,null,null,null,null,null,"Kein Zusatzplan"]
[null,null,null,null,null,null,"Kein Zusatzplan"]
[null,null,null,null,null,null,"Kein Zusatzplan"]
[null,null,null,null,null,null,"Kein Zusatzplan"]
[null,null,null,null,null,null,"Kein Zusatzplan"]
[null,null,null,null,null,null,"Kein Zusatzplan"]
[null,null,null,null,null,null,"Kein Zusatzplan"]
[null,null,null,null,null,null,"Kein Zusatzplan"]
[null,null,null,null,null,null,"Kein Zusatzplan"]
[null,null,null,null,null,null,"Kein Zusatzplan"]
[null,null,null,null,null,null,"Kein Zusatzplan"]
[null,null,null,null,null,null,"Kein Zusatzplan"]
[null,null,null,null,null,null,"Kein Zusatzplan"]
[null,null,null,null,null,null,"Kein Zusatzplan"]
[null,null,null,null,null,null,"Kein Zusatzplan"]
[null,null,null,null,null,null,"Kein Zusatzplan"]
[null,null,null,null,null,null,"Kein Zusatzplan"]
[null,null,null,null,null,null,"Kein Zusatzplan"]
[null,null,null,null,null,null,"Kein Zusatzplan"]
[null,null,null,null,null,null,"Kein Zusatzplan"]
[null,null,null,null,null,null,"Kein Zusatzplan"]
[null,null,null,null,null,null,"Kein Zusatzplan"]
[null,null,null,null,null,null,"Kein Zusatzplan"]
[null,null,null,null,null,null,"Kein Zusatzplan"]
[null,null,null,null,null,null,{"$f":"be_zusatzplan","v":"Kein Zusatzplan"}]
[null,null,null,null,null,null,"Kein Zusatzplan"]
[null,null,null,null,null,null,"Kein Zusatzplan"]
[null,null,null,null,null,null,"Kein Zusatzplan"]
[null,null,null,null,null,null,"Kein Zusatzplan"]
[null,null,null,null,null,null,"Kein Zusatzplan"]
[null,null,null,null,null,null,"Kein Zusatzplan"]
[null,null,null,null,null,null,"Kein Zusatzplan"]
[null,null,null,null,null,null,"Kein Zusatzplan"]
[null,null,null,null,null,null,"Kein Zusatzplan"]
[null,null,null,null,null,null,"Kein Zusatzplan"]
[null,null,null,null,null,null,"Kein Zusatzplan"]
[null,null,null,null,null,null,"Kein Zusatzplan"]
[null,null,null,null,null,null,"Kein Zusatzplan"]
[null,null,null,null,null,null,"Kein Zusatzplan"]
[null,null,null,null,null,null,"Kein Zusatzplan"]
[null,null,null,null,null,null,"Kein Zusatzplan"]
[null,null,null,null,null,null,"Kein Zusatzplan"]
[null,null,null,null,null,null,"Kein Zusatzplan"]
[null,null,null,null,null,null,"Kein Zusatzplan"]
[null,null,null,null,null,null,"Kein Zusatzplan"]
[null,null,null,null,null,null,"Kein Zusatzplan"]
[null,null,null,null,null,null,"Kein Zusatzplan"]
[null,null,null,null,null,null,"Kein Zusatzplan"]
[null,null,null,null,null,null,"Kein Zusatzplan"]
[null,null,null,null,null,null,"Kein Zusatzplan"]
[null,null,null,null,null,null,"Kein Zusatzplan"]
[null,null,null,null,null,null,"Kein Zusatzplan"]
[null,null,null,null,null,null,"Kein Zusatzplan"]
[null,null,null,null,null,null,"Kein Zusatzplan"]
[null,null,null,null,null,null,"Kein Zusatzplan"]
[null,null,null,null,null,null,"Kein Zusatzplan"]
[null,null,null,null,null,null,"Kein Zusatzplan"]
[null,null,null,null,null,null,"Kein Zusatzplan"]
[null,null,null,null,null,null,"Kein Zusatzplan"]
[null,null,null,null,null,null,"Kein Zusatzplan"]
[null,null,null,null,null,null,"Kein Zusatzplan"]
[null,null,null,null,null,null,"Kein Zusatzplan"]
[null,null,null,null,null,null,"Kein Zusatzplan"]
[null,null,null,null,null,null,"Kein Zusatzplan"]
[null,null,null,null,null,null,"Kein Zusatzplan"]
[null,null,null,null,null,null,"Kein Zusatzplan"]
[null,null,null,null,null,null,"Kein Zusatzplan"]
[null,null,null,null,null,null,"Kein Zusatzplan"]
[null,null,null,null,null,null,"Kein Zusatzplan"]
[null,null,null,null,null,null,"Kein Zusatzplan"]
[null,null,null,null,null,null,"Kein Zusatzplan"]
[null,null,null,null,null,null,"Kein Zusatzplan"]
[null,null,null,null,null,null,"Kein Zusatzplan"]
[null,null,null,null,null,null,"Kein Zusatzplan"]
[null,null,null,null,null,null,"Kein Zusatzplan"]
[null,null,null,null,null,null,"Kein Zusatzplan"]
[null,null,null,null,null,null,"Kein Zusatzplan"]
[null,null,null,null,null,null,"Kein Zusatzplan"]
[null,null,null,null,null,null,"Kein Zusatzplan"]
[null,null,null,null,null,null,"Kein Zusatzplan"]
[null,null,null,null,null,null,"Kein Zusatzplan"]
[null,null,null,null,null,null,"Kein Zusatzplan"]
[null,null,null,null,null,null,"Kein Zusatzplan"]
[null,null,null,null,null,null,"Kein Zusatzplan"]
[null,null,null,null,null,null,"Kein Zusatzplan"]
[null,null,null,null,null,null,"Kein Zusatzplan"]
[null,null,null,null,null,null,"Kein Zusatzplan"]
[null,null,null,null,null,null,"Kein Zusatzplan"]
[null,null,null,null,null,null,{"$f":"be_zusatzplan","v":"Kein Zusatzplan"}]
[null,null,null,null,null,null,"Kein Zusatzplan"]
[null,null,null,null,null,null,"Kein Zusatzplan"]
[null,null,null,null,null,null,"Kein Zusatzplan"]
[null,null,null,null,null,null,"Kein Zusatzplan"]
[null,null,null,null,null,null,"Kein Zusatzplan"]
[null,null,null,null,null,null,"Kein Zusatzplan"]
[null,null,null,null,null,null,"Kein Zusatzplan"]
[null,null,null,null,null,null,"Kein Zusatzplan"]
[null,null,null,null,null,null,"Kein Zusatzplan"]
[null,null,null,null,null,null,"Kein Zusatzplan"]
[null,null,null,null,null,null,"Kein Zusatzplan"]
[null,null,null,null,null,null,"Kein Zusatzplan"]
[null,null,null,null,null,null,"Kein Zusatzplan"]
[null,null,null,null,null,null,"Kein Zusatzplan"]
[null,null,null,null,null,null,"Kein Zusatzplan"]
[null,null,null,null,null,null,"Kein Zusatzplan"]
[null,null,null,null,null,null,"Kein Zusatzplan"]
[null,null,null,null,null,null,"Kein Zusatzplan"]
[null,null,null,null,null,null,"Kein Zusatzplan"]
[null,null,null,null,null,null,"Kein Zusatzplan"]
[null,null,null,null,null,null,"Kein Zusatzplan"]
[null,null,null,null,null,null,"Kein Zusatzplan"]
[null,null,null,null,null,null,"Kein Zusatzplan"]
[null,null,null,null,null,null,"Kein Zusatzplan"]
[null,null,null,null,null,null,"Kein Zusatzplan"]
[null,null,null,null,null,null,"Kein Zusatzplan"]
[null,null,null,null,null,null,"Kein Zusatzplan"]
[null,null,null,null,null,null,"Kein Zusatzplan"]
[null,null,null,null,null,null,"Kein Zusatzplan"]
[null,null,null,null,null,null,"Kein Zusatzplan"]
[null,null,null,null,null,null,"Kein Zusatzplan"]
[null,null,null,null,null,null,"Kein Zusatzplan"]
[null,null,null,null,null,null,"Kein Zusatzplan"]
[null,null,null,null,null,null,"Kein Zusatzplan"]
[null,null,null,null,null,null,"Kein Zusatzplan"]
[null,null,null,null,null,null,"Kein Zusatzplan"]
[null,null,null,null,null,null,"Kein Zusatzplan"]
[null,null,null,null,null,null,"Kein Zusatzplan"]
[null,null,null,null,null,null,"Kein Zusatzplan"]
[null,null,null,null,null,null,"Kein Zusatzplan"]
[null,null,null,null,null,null,"Kein Zusatzplan"]
[null,null,null,null,null,null,"Kein Zusatzplan"]
[null,null,null,null,null,null,"Kein Zusatzplan"]
[null,null,null,null,null,null,"Kein Zusatzplan"]
[null,null,null,null,null,null,"Kein Zusatzplan"]
[null,null,null,null,null,null,"Kein Zusatzplan"]
[null,null,null,null,null,null,"Kein Zusatzplan"]
[null,null,null,null,null,null,"Kein Zusatzplan"]
[null,null,null,null,null,null,"Kein Zusatzplan"]
[null,null,null,null,null,null,"Kein Zusatzplan"]
[null,null,null,null,null,null,"Kein Zusatzplan"]
[null,null,null,null,null,null,"Kein Zusatzplan"]
[null,null,null,null,null,null,"Kein Zusatzplan"]
[null,null,null,null,null,null,"Kein Zusatzplan"]
[null,null,null,null,null,null,"Kein Zusatzplan"]
[null,null,null,null,null,null,"Kein Zusatzplan"]
[null,null,null,null,null,null,"Kein Zusatzplan"]
[null,null,null,null,null,null,"Kein Zusatzplan"]
[null,null,null,null,null,null,"Kein Zusatzplan"]
[null,null,null,null,null,null,"Kein Zusatzplan"]
[null,null,null,null,null,null,"Kein Zusatzplan"]
[null,null,null,null,null,null,"Kein Zusatzplan"]
[null,null,null,null,null,null,"Kein Zusatzplan"]
[null,null,null,null,null,null,{"$f":"be_zusatzplan","v":"Kein Zusatzplan"}]
[null,null,null,null,null,null,"Kein Zusatzplan"]
[null,null,null,null,null,null,"Kein Zusatzplan"]
[null,null,null,null,null,null,"Kein Zusatzplan"]
[null,null,null,null,null,null,"Kein Zusatzplan"]
[null,null,null,null,null,null,"Kein Zusatzplan"]
[null,null,null,null,null,null,"Kein Zusatzplan"]
[null,null,null,null,null,null,"Kein Zusatzplan"]
[null,null,null,null,null,null,"Kein Zusatzplan"]
[null,null,null,null,null,null,"Kein Zusatzplan"]
[null,null,null,null,null,null,"Kein Zusatzplan"]
[null,null,null,null,null,null,"Kein Zusatzplan"]
[null,null,null,null,null,null,"Kein Zusatzplan"]
[null,null,null,null,null,null,"Kein Zusatzplan"]
[null,null,null,null,null,null,"Kein Zusatzplan"]
[null,null,null,null,null,null,"Kein Zusatzplan"]
[null,null,null,null,null,null,"Kein Zusatzplan"]
[null,null,null,null,null,null,"Kein Zusatzplan"]
[null,null,null,null,null,null,"Kein Zusatzplan"]
[null,null,null,null,null,null,"Kein Zusatzplan"]
[null,null,null,null,null,null,"Kein Zusatzplan"]
[null,null,null,null,null,null,"Kein Zusatzplan"]
[null,null,null,null,null,null,"Kein Zusatzplan"]
[null,null,null,null,null,null,"Kein Zusatzplan"]
[null,null,null,null,null,null,"Kein Zusatzplan"]
[null,null,null,null,null,null,"Kein Zusatzplan"]
[null,null,null,null,null,null,"Kein Zusatzplan"]
[null,null,null,null,null,null,"Kein Zusatzplan"]
[null,null,null,null,null,null,"Kein Zusatzplan"]
[null,null,null,null,null,null,"Kein Zusatzplan"]
[null,null,null,null,null,null,"Kein Zusatzplan"]
[null,null,null,null,null,null,"Kein Zusatzplan"]
[null,null,null,null,null,null,"Kein Zusatzplan"]
[null,null,null,null,null,null,"Kein Zusatzplan"]
[null,null,null,null,null,null,"Kein Zusatzplan"]
[null,null,null,null,null,null,"Kein Zusatzplan"]
[null,null,null,null,null,null,"Kein Zusatzplan"]
[null,null,null,null,null,null,"Kein Zusatzplan"]
[null,null,null,null,null,null,"Kein Zusatzplan"]
[null,null,null,null,null,null,"Kein Zusatzplan"]
[null,null,null,null,null,null,"Kein Zusatzplan"]
[null,null,null,null,null,null,"Kein Zusatzplan"]
[null,null,null,null,null,null,"Kein Zusatzplan"]
[null,null,null,null,null,null,"Kein Zusatzplan"]
[null,null,null,null,null,null,"Kein Zusatzplan"]
[null,null,null,null,null,null,"Kein Zusatzplan"]
[null,null,null,null,null,null,"Kein Zusatzplan"]
[null,null,null,null,null,null,"Kein Zusatzplan"]
[null,null,null,null,null,null,"Kein Zusatzplan"]
[null,null,null,null,null,null,"Kein Zusatzplan"]
[null,null,null,null,null,null,"Kein Zusatzplan"]
[null,null,null,null,null,null,"Kein Zusatzplan"]
[null,null,null,null,null,null,"Kein Zusatzplan"]
[null,null,null,null,null,null,"Kein Zusatzplan"]
[null,null,null,null,null,null,"Kein Zusatzplan"]
[null,null,null,null,null,null,"Kein Zusatzplan"]
[null,null,null,null,null,null,"Kein Zusatzplan"]
[null,null,null,null,null,null,"Kein Zusatzplan"]
[null,null,null,null,null,null,"Kein Zusatzplan"]
[null,null,null,null,null,null,"Kein Zusatzplan"]
[null,null,null,null,null,null,"Kein Zusatzplan"]
[null,null,null,null,null,null,"Kein Zusatzplan"]
[null,null,null,null,null,null,"Kein Zusatzplan"]
[null,null,null,null,null,null,"Kein Zusatzplan"]
[null,null,null,null,null,null,{"$f":"be_zusatzplan","v":"Kein Zusatzplan"}]
[null,null,null,null,null,null,"Kein Zusatzplan"]
[null,null,null,null,null,null,"Kein Zusatzplan"]
[null,null,null,null,null,null,"Kein Zusatzplan"]
[null,null,null,null,null,null,"Kein Zusatzplan"]
[null,null,null,null,null,null,"Kein Zusatzplan"]
[null,null,null,null,null,null,"Kein Zusatzplan"]
[null,null,null,null,null,null,"Kein Zusatzplan"]
[null,null,null,null,null,null,"Kein Zusatzplan"]
[null,null,null,null,null,null,"Kein Zusatzplan"]
[null,null,null,null,null,null,"Kein Zusatzplan"]
[null,null,null,null,null,null,"Kein Zusatzplan"]
[null,null,null,null,null,null,"Kein Zusatzplan"]
[null,null,null,null,null,null,"Kein Zusatzplan"]
[null,null,null,null,null,null,"Kein Zusatzplan"]
[null,null,null,null,null,null,"Kein Zusatzplan"]
[null,null,null,null,null,null,"Kein Zusatzplan"]
[null,null,null,null,null,null,"Kein Zusatzplan"]
[null,null,null,null,null,null,"Kein Zusatzplan"]
[null,null,null,null,null,null,"Kein Zusatzplan"]
[null,null,null,null,null,null,"Kein Zusatzplan"]
[null,null,null,null,null,null,"Kein Zusatzplan"]
[null,null,null,null,null,null,"Kein Zusatzplan"]
[null,null,null,null,null,null,"Kein Zusatzplan"]
[null,null,null,null,null,null,"Kein Zusatzplan"]
[null,null,null,null,null,null,"Kein Zusatzplan"]
[null,null,null,null,null,null,"Kein Zusatzplan"]
[null,null,null,null,null,null,"Kein Zusatzplan"]
[null,null,null,null,null,null,"Kein Zusatzplan"]
[null,null,null,null,null,null,"Kein Zusatzplan"]
[null,null,null,null,null,null,"Kein Zusatzplan"]
[null,null,null,null,null,null,"Kein Zusatzplan"]
[null,null,null,null,null,null,"Kein Zusatzplan"]
[null,null,null,null,null,null,"Kein Zusatzplan"]
[null,null,null,null,null,null,"Kein Zusatzplan"]
[null,null,null,null,null,null,"Kein Zusatzplan"]
[null,null,null,null,null,null,"Kein Zusatzplan"]
[null,null,null,null,null,null,"Kein Zusatzplan"]
[null,null,null,null,null,null,"Kein Zusatzplan"]
[null,null,null,null,null,null,"Kein Zusatzplan"]
[null,null,null,null,null,null,"Kein Zusatzplan"]
[null,null,null,null,null,null,"Kein Zusatzplan"]
[null,null,null,null,null,null,"Kein Zusatzplan"]
[null,null,null,null,null,null,"Kein Zusatzplan"]
[null,null,null,null,null,null,"Kein Zusatzplan"]
[null,null,null,null,null,null,"Kein Zusatzplan"]
[null,null,null,null,null,null,"Kein Zusatzplan"]
[null,null,null,null,null,null,"Kein Zusatzplan"]
[null,null,null,null,null,null,"Kein Zusatzplan"]
[null,null,null,null,null,null,"Kein Zusatzplan"]
[null,null,null,null,null,null,"Kein Zusatzplan"]
[null,null,null,null,null,null,"Kein Zusatzplan"]
[null,null,null,null,null,null,"Kein Zusatzplan"]
[null,null,null,null,null,null,"Kein Zusatzplan"]
[null,null,null,null,null,null,"Kein Zusatzplan"]
[null,null,null,null,null,null,"Kein Zusatzplan"]
[null,null,null,null,null,null,"Kein Zusatzplan"]
[null,null,null,null,null,null,"Kein Zusatzplan"]
[null,null,null,null,null,null,"Kein Zusatzplan"]
[null,null,null,null,null,null,"Kein Zusatzplan"]
[null,null,null,null,null,null,"Kein Zusatzplan"]
[null,null,null,null,null,null,"Kein Zusatzplan"]
[null,null,null,null,null,null,"Kein Zusatzplan"]
[null,null,null,null,null,null,"Kein Zusatzplan"]
[null,null,null,null,null,null,{"$f":"be_zusatzplan","v":"Kein Zusatzplan"}]
[null,null,null,null,null,null,"Kein Zusatzplan"]
[null,null,null,null,null,null,"Kein Zusatzplan"]
[null,null,null,null,null,null,"Kein Zusatzplan"]
[null,null,null,null,null,null,"Kein Zusatzplan"]
[null,null,null,null,null,null,"Kein Zusatzplan"]
[null,null,null,null,null,null,"Kein Zusatzplan"]
[null,null,null,null,null,null,"Kein Zusatzplan"]
[null,null,null,null,null,null,"Kein Zusatzplan"]
[null,null,null,null,null,null,"Kein Zusatzplan"]
[null,null,null,null,null,null,"Kein Zusatzplan"]
[null,null,null,null,null,null,"Kein Zusatzplan"]
[null,null,null,null,null,null,"Kein Zusatzplan"]
[null,null,null,null,null,null,"Kein Zusatzplan"]
[null,null,null,null,null,null,"Kein Zusatzplan"]
[null,null,null,null,null,null,"Kein Zusatzplan"]
[null,null,null,null,null,null,"Kein Zusatzplan"]
[null,null,null,null,null,null,"Kein Zusatzplan"]
[null,null,null,null,null,null,"Kein Zusatzplan"]
[null,null,null,null,null,null,"Kein Zusatzplan"]
[null,null,null,null,null,null,"Kein Zusatzplan"]
[null,null,null,null,null,null,"Kein Zusatzplan"]
[null,null,null,null,null,null,"Kein Zusatzplan"]
[null,null,null,null,null,null,"Kein Zusatzplan"]
[null,null,null,null,null,null,"Kein Zusatzplan"]
[null,null,null,null,null,null,"Kein Zusatzplan"]
[null,null,null,null,null,null,"Kein Zusatzplan"]
[null,null,null,null,null,null,"Kein Zusatzplan"]
[null,null,null,null,null,null,"Kein Zusatzplan"]
[null,null,null,null,null,null,"Kein Zusatzplan"]
[null,null,null,null,null,null,"Kein Zusatzplan"]
[null,null,null,null,null,null,"Kein Zusatzplan"]
[null,null,null,null,null,null,"Kein Zusatzplan"]
[null,null,null,null,null,null,"Kein Zusatzplan"]
[null,null,null,null,null,null,"Kein Zusatzplan"]
[null,null,null,null,null,null,"Kein Zusatzplan"]
[null,null,null,null,null,null,"Kein Zusatzplan"]
[null,null,null,null,null,null,"Kein Zusatzplan"]
[null,null,null,null,null,null,"Kein Zusatzplan"]
[null,null,null,null,null,null,"Kein Zusatzplan"]
[null,null,null,null,null,null,"Kein Zusatzplan"]
[null,null,null,null,null,null,"Kein Zusatzplan"]
[null,null,null,null,null,null,"Kein Zusatzplan"]
[null,null,null,null,null,null,"Kein Zusatzplan"]
[null,null,null,null,null,null,"Kein Zusatzplan"]
[null,null,null,null,null,null,"Kein Zusatzplan"]
[null,null,null,null,null,null,"Kein Zusatzplan"]
[null,null,null,null,null,null,"Kein Zusatzplan"]
[null,null,null,null,null,null,"Kein Zusatzplan"]
[null,null,null,null,null,null,"Kein Zusatzplan"]
[null,null,null,null,null,null,"Kein Zusatzplan"]
[null,null,null,null,null,null,"Kein Zusatzplan"]
[null,null,null,null,null,null,"Kein Zusatzplan"]
[null,null,null,null,null,null,"Kein Zusatzplan"]
[null,null,null,null,null,null,"Kein Zusatzplan"]
[null,null,null,null,null,null,"Kein Zusatzplan"]
[null,null,null,null,null,null,"Kein Zusatzplan"]
[null,null,null,null,null,null,"Kein Zusatzplan"]
[null,null,null,null,null,null,"Kein Zusatzplan"]
[null,null,null,null,null,null,"Kein Zusatzplan"]
[null,null,null,null,null,null,"Kein Zusatzplan"]
[null,null,null,null,null,null,"Kein Zusatzplan"]
[null,null,null,null,null,null,"Kein Zusatzplan"]
[null,null,null,null,null,null,"Kein Zusatzplan"]
[null,null,null,null,null,null,{"$f":"be_zusatzplan","v":"Kein Zusatzplan"}]
[null,null,null,null,null,null,"Kein Zusatzplan"]
[null,null,null,null,null,null,"Kein Zusatzplan"]
[null,null,null,null,null,null,"Kein Zusatzplan"]
[null,null,null,null,null,null,"Kein Zusatzplan"]
[null,null,null,null,null,null,"Kein Zusatzplan"]
[null,null,null,null,null,null,"Kein Zusatzplan"]
[null,null,null,null,null,null,"Kein Zusatzplan"]
[null,null,null,null,null,null,"Kein Zusatzplan"]
[null,null,null,null,null,null,"Kein Zusatzplan"]
[null,null,null,null,null,null,"Kein Zusatzplan"]
[null,null,null,null,null,null,"Kein Zusatzplan"]
[null,null,null,null,null,null,"Kein Zusatzplan"]
[null,null,null,null,null,null,"Kein Zusatzplan"]
[null,null,null,null,null,null,"Kein Zusatzplan"]
[null,null,null,null,null,null,"Kein Zusatzplan"]
[null,null,null,null,null,null,"Kein Zusatzplan"]
[null,null,null,null,null,null,"Kein Zusatzplan"]
[null,null,null,null,null,null,"Kein Zusatzplan"]
[null,null,null,null,null,null,"Kein Zusatzplan"]
[null,null,null,null,null,null,"Kein Zusatzplan"]
[null,null,null,null,null,null,"Kein Zusatzplan"]
[null,null,null,null,null,null,"Kein Zusatzplan"]
[null,null,null,null,null,null,"Kein Zusatzplan"]
[null,null,null,null,null,null,"Kein Zusatzplan"]
[null,null,null,null,null,null,"Kein Zusatzplan"]
[null,null,null,null,null,null,"Kein Zusatzplan"]
[null,null,null,null,null,null,"Kein Zusatzplan"]
[null,null,null,null,null,null,"Kein Zusatzplan"]
[null,null,null,null,null,null,"Kein Zusatzplan"]
[null,null,null,null,null,null,"Kein Zusatzplan"]
[null,null,null,null,null,null,"Kein Zusatzplan"]
[null,null,null,null,null,null,"Kein Zusatzplan"]
[null,null,null,null,null,null,"Kein Zusatzplan"]
[null,null,null,null,null,null,"Kein Zusatzplan"]
[null,null,null,null,null,null,"Kein Zusatzplan"]
[null,null,null,null,null,null,"Kein Zusatzplan"]
[null,null,null,null,null,null,"Kein Zusatzplan"]
[null,null,null,null,null,null,"Kein Zusatzplan"]
[null,null,null,null,null,null,"Kein Zusatzplan"]
[null,null,null,null,null,null,"Kein Zusatzplan"]
[null,null,null,null,null,null,"Kein Zusatzplan"]
[null,null,null,null,null,null,"Kein Zusatzplan"]
[null,null,null,null,null,null,"Kein Zusatzplan"]
[null,null,null,null,null,null,"Kein Zusatzplan"]
[null,null,null,null,null,null,"Kein Zusatzplan"]
[null,null,null,null,null,null,"Kein Zusatzplan"]
[null,null,null,null,null,null,"Kein Zusatzplan"]
[null,null,null,null,null,null,"Kein Zusatzplan"]
[null,null,null,null,null,null,"Kein Zusatzplan"]
[null,null,null,null,null,null,"Kein Zusatzplan"]
[null,null,null,null,null,null,"Kein Zusatzplan"]
[null,null,null,null,null,null,"Kein Zusatzplan"]
[null,null,null,null,null,null,"Kein Zusatzplan"]
[null,null,null,null,null,null,"Kein Zusatzplan"]
[null,null,null,null,null,null,"Kein Zusatzplan"]
[null,null,null,null,null,null,"Kein Zusatzplan"]
[null,null,null,null,null,null,"Kein Zusatzplan"]
[null,null,null,null,null,null,"Kein Zusatzplan"]
[null,null,null,null,null,null,"Kein Zusatzplan"]
[null,null,null,null,null,null,"Kein Zusatzplan"]
[null,null,null,null,null,null,"Kein Zusatzplan"]
[null,null,null,null,null,null,"Kein Zusatzplan"]
[null,null,null,null,null,null,"Kein Zusatzplan"]
[null,null,null,null,null,null,{"$f":"be_zusatzplan","v":"Kein Zusatzplan"}]
[null,null,null,null,null,null,"Kein Zusatzplan"]
[null,null,null,null,null,null,"Kein Zusatzplan"]
[null,null,null,null,null,null,"Kein Zusatzplan"]
[null,null,null,null,null,null,"Kein Zusatzplan"]
[null,null,null,null,null,null,"Kein Zusatzplan"]
[null,null,null,null,null,null,"Kein Zusatzplan"]
[null,null,null,null,null,null,"Kein Zusatzplan"]
[null,null,null,null,null,null,"Kein Zusatzplan"]
[null,null,null,null,null,null,"Kein Zusatzplan"]
[null,null,null,null,null,null,"Kein Zusatzplan"]
[null,null,null,null,null,null,"Kein Zusatzplan"]
[null,null,null,null,null,null,"Kein Zusatzplan"]
[null,null,null,null,null,null,"Kein Zusatzplan"]
[null,null,null,null,null,null,"Kein Zusatzplan"]
[null,null,null,null,null,null,"Kein Zusatzplan"]
[null,null,null,null,null,null,"Kein Zusatzplan"]
[null,null,null,null,null,null,"Kein Zusatzplan"]
[null,null,null,null,null,null,"Kein Zusatzplan"]
[null,null,null,null,null,null,"Kein Zusatzplan"]
[null,null,null,null,null,null,"Kein Zusatzplan"]
[null,null,null,null,null,null,"Kein Zusatzplan"]
[null,null,null,null,null,null,"Kein Zusatzplan"]
[null,null,null,null,null,null,"Kein Zusatzplan"]
[null,null,null,null,null,null,"Kein Zusatzplan"]
[null,null,null,null,null,null,"Kein Zusatzplan"]
[null,null,null,null,null,null,"Kein Zusatzplan"]
[null,null,null,null,null,null,"Kein Zusatzplan"]
[null,null,null,null,null,null,"Kein Zusatzplan"]
[null,null,null,null,null,null,"Kein Zusatzplan"]
[null,null,null,null,null,null,"Kein Zusatzplan"]
[null,null,null,null,null,null,"Kein Zusatzplan"]
[null,null,null,null,null,null,"Kein Zusatzplan"]
[null,null,null,null,null,null,"Kein Zusatzplan"]
[null,null,null,null,null,null,"Kein Zusatzplan"]
[null,null,null,null,null,null,"Kein Zusatzplan"]
[null,null,null,null,null,null,"Kein Zusatzplan"]
[null,null,null,null,null,null,"Kein Zusatzplan"]
[null,null,null,null,null,null,"Kein Zusatzplan"]
[null,null,null,null,null,null,"Kein Zusatzplan"]
[null,null,null,null,null,null,"Kein Zusatzplan"]
[null,null,null,null,null,null,"Kein Zusatzplan"]
[null,null,null,null,null,null,"Kein Zusatzplan"]
[null,null,null,null,null,null,"Kein Zusatzplan"]
[null,null,null,null,null,null,"Kein Zusatzplan"]
[null,null,null,null,null,null,"Kein Zusatzplan"]
[null,null,null,null,null,null,"Kein Zusatzplan"]
[null,null,null,null,null,null,"Kein Zusatzplan"]
[null,null,null,null,null,null,"Kein Zusatzplan"]
[null,null,null,null,null,null,"Kein Zusatzplan"]
[null,null,null,null,null,null,"Kein Zusatzplan"]
[null,null,null,null,null,null,"Kein Zusatzplan"]
[null,null,null,null,null,null,"Kein Zusatzplan"]
[null,null,null,null,null,null,"Kein Zusatzplan"]
[null,null,null,null,null,null,"Kein Zusatzplan"]
[null,null,null,null,null,null,"Kein Zusatzplan"]
[null,null,null,null,null,null,"Kein Zusatzplan"]
[null,null,null,null,null,null,"Kein Zusatzplan"]
[null,null,null,null,null,null,"Kein Zusatzplan"]
[null,null,null,null,null,null,"Kein Zusatzplan"]
[null,null,null,null,null,null,"Kein Zusatzplan"]
[null,null,null,null,null,null,"Kein Zusatzplan"]
[null,null,null,null,null,null,"Kein Zusatzplan"]
[null,null,null,null,null,null,"Kein Zusatzplan"]
[null,null,null,null,null,null,{"$f":"be_zusatzplan","v":"Kein Zusatzplan"}]
[null,null,null,null,null,null,"Kein Zusatzplan"]
[null,null,null,null,null,null,"Kein Zusatzplan"]
[null,null,null,null,null,null,"Kein Zusatzplan"]
[null,null,null,null,null,null,"Kein Zusatzplan"]
[null,null,null,null,null,null,"Kein Zusatzplan"]
[null,null,null,null,null,null,"Kein Zusatzplan"]
[null,null,null,null,null,null,"Kein Zusatzplan"]
[null,null,null,null,null,null,"Kein Zusatzplan"]
[null,null,null,null,null,null,"Kein Zusatzplan"]
[null,null,null,null,null,null,"Kein Zusatzplan"]
[null,null,null,null,null,null,"Kein Zusatzplan"]
[null,null,null,null,null,null,"Kein Zusatzplan"]
[null,null,null,null,null,null,"Kein Zusatzplan"]
[null,null,null,null,null,null,"Kein Zusatzplan"]
[null,null,null,null,null,null,"Kein Zusatzplan"]
[null,null,null,null,null,null,"Kein Zusatzplan"]
[null,null,null,null,null,null,"Kein Zusatzplan"]
[null,null,null,null,null,null,"Kein Zusatzplan"]
[null,null,null,null,null,null,"Kein Zusatzplan"]
[null,null,null,null,null,null,"Kein Zusatzplan"]
[null,null,null,null,null,null,"Kein Zusatzplan"]
[null,null,null,null,null,null,"Kein Zusatzplan"]
[null,null,null,null,null,null,"Kein Zusatzplan"]
[null,null,null,null,null,null,"Kein Zusatzplan"]
[null,null,null,null,null,null,"Kein Zusatzplan"]
[null,null,null,null,null,null,"Kein Zusatzplan"]
[null,null,null,null,null,null,"Kein Zusatzplan"]
[null,null,null,null,null,null,"Kein Zusatzplan"]
[null,null,null,null,null,null,"Kein Zusatzplan"]
[null,null,null,null,null,null,"Kein Zusatzplan"]
[null,null,null,null,null,null,"Kein Zusatzplan"]
[null,null,null,null,null,null,"Kein Zusatzplan"]
[null,null,null,null,null,null,"Kein Zusatzplan"]
[null,null,null,null,null,null,"Kein Zusatzplan"]
[null,null,null,null,null,null,"Kein Zusatzplan"]
[null,null,null,null,null,null,"Kein Zusatzplan"]
[null,null,null,null,null,null,"Kein Zusatzplan"]
[null,null,null,null,null,null,"Kein Zusatzplan"]
[null,null,null,null,null,null,"Kein Zusatzplan"]
[null,null,null,null,null,null,"Kein Zusatzplan"]
[null,null,null,null,null,null,"Kein Zusatzplan"]
[null,null,null,null,null,null,"Kein Zusatzplan"]
[null,null,null,null,null,null,"Kein Zusatzplan"]
[null,null,null,null,null,null,"Kein Zusatzplan"]
[null,null,null,null,null,null,"Kein Zusatzplan"]
[null,null,null,null,null,null,"Kein Zusatzplan"]
[null,null,null,null,null,null,"Kein Zusatzplan"]
[null,null,null,null,null,null,"Kein Zusatzplan"]
[null,null,null,null,null,null,"Kein Zusatzplan"]
[null,null,null,null,null,null,"Kein Zusatzplan"]
[null,null,null,null,null,null,"Kein Zusatzplan"]
[null,null,null,null,null,null,"Kein Zusatzplan"]
[null,null,null,null,null,null,"Kein Zusatzplan"]
[null,null,null,null,null,null,"Kein Zusatzplan"]
[null,null,null,null,null,null,"Kein Zusatzplan"]
[null,null,null,null,null,null,"Kein Zusatzplan"]
[null,null,null,null,null,null,"Kein Zusatzplan"]
[null,null,null,null,null,null,"Kein Zusatzplan"]
[null,null,null,null,null,null,"Kein Zusatzplan"]
[null,null,null,null,null,null,"Kein Zusatzplan"]
[null,null,null,null,null,null,"Kein Zusatzplan"]
[null,null,null,null,null,null,"Kein Zusatzplan"]
[null,null,null,null,null,null,"Kein Zusatzplan"]
[null,null,null,null,null,null,{"$f":"be_zusatzplan","v":"Kein Zusatzplan"}]
[null,null,null,null,null,null,"Kein Zusatzplan"]
[null,null,null,null,null,null,"Kein Zusatzplan"]
[null,null,null,null,null,null,"Kein Zusatzplan"]
[null,null,null,null,null,null,"Kein Zusatzplan"]
[null,null,null,null,null,null,"Kein Zusatzplan"]
[null,null,null,null,null,null,"Kein Zusatzplan"]
[null,null,null,null,null,null,"Kein Zusatzplan"]
[null,null,null,null,null,null,"Kein Zusatzplan"]
[null,null,null,null,null,null,"Kein Zusatzplan"]
[null,null,null,null,null,null,"Kein Zusatzplan"]
[null,null,null,null,null,null,"Kein Zusatzplan"]
[null,null,null,null,null,null,"Kein Zusatzplan"]
[null,null,null,null,null,null,"Kein Zusatzplan"]
[null,null,null,null,null,null,"Kein Zusatzplan"]
[null,null,null,null,null,null,"Kein Zusatzplan"]
[null,null,null,null,null,null,"Kein Zusatzplan"]
[null,null,null,null,null,null,"Kein Zusatzplan"]
[null,null,null,null,null,null,"Kein Zusatzplan"]
[null,null,null,null,null,null,"Kein Zusatzplan"]
[null,null,null,null,null,null,"Kein Zusatzplan"]
[null,null,null,null,null,null,"Kein Zusatzplan"]
[null,null,null,null,null,null,"Kein Zusatzplan"]
[null,null,null,null,null,null,"Kein Zusatzplan"]
[null,null,null,null,null,null,"Kein Zusatzplan"]
[null,null,null,null,null,null,"Kein Zusatzplan"]
[null,null,null,null,null,null,"Kein Zusatzplan"]
[null,null,null,null,null,null,"Kein Zusatzplan"]
[null,null,null,null,null,null,"Kein Zusatzplan"]
[null,null,null,null,null,null,"Kein Zusatzplan"]
[null,null,null,null,null,null,"Kein Zusatzplan"]
[null,null,null,null,null,null,"Kein Zusatzplan"]
[null,null,null,null,null,null,"Kein Zusatzplan"]
[null,null,null,null,null,null,"Kein Zusatzplan"]
[null,null,null,null,null,null,"Kein Zusatzplan"]
[null,null,null,null,null,null,"Kein Zusatzplan"]
[null,null,null,null,null,null,"Kein Zusatzplan"]
[null,null,null,null,null,null,"Kein Zusatzplan"]
[null,null,null,null,null,null,"Kein Zusatzplan"]
[null,null,null,null,null,null,"Kein Zusatzplan"]
[null,null,null,null,null,null,"Kein Zusatzplan"]
[{"$f":"COUNTA(A12:A1012)","v":0}]

{"sheet":"Bestandesübersicht","index":9,"n_rows":18,"n_cols":13,"rows_kept":18,"cut":false,"hidden":true,"merged":[[1,6,1,8]]}
[null,null,null,null,null,null,"Agrisano Pencas"]
[null,null,null,null,null,null,"Berufliche Vorsorge"]
["Beitragsverzeichnis Pensionskasse 2022"]
[]
[]
[]
[]
["Plan A, mit Koordinationsabzug, Standardtarif",null,null,null,null,null,null,null,null,null,null,"Beitrag Arbeitnehmer",0.5]
["Vorname / Name  ",null,"Jahrgang","AHV-Lohn","Versicherter Lohn","Sparbeitrag %","Sparbeitrag","Risikobeitrag %","Risikobeitrag","Verwaltungs-kosten","Sicherheits-fonds Beitrag","Total Beitrag","davon Anteil Arbeitnehmer"]
[null,null,null,null,null,null,null,null,"Grundbeitrag Verwaltungskosten",null,null,95]
[null,null,null,null,null,null,null,null,"Verwaltungskosten Zusatzplan",null,null,{"$f":"IF(u_zusatzplan=0,0,95)","v":0}]
[null,null,null,null,null,null,null,null,"Total Beiträge Betrieb",null,null,{"$f":"SUM(L10:L11)","v":95}]
[]
[null,null,null,null,null,null,null,null,"Beitrag Arbeitnehmer",null,null,{"$f":"SUM(M9:M10)","v":0}]
[null,null,null,null,null,null,null,null,"Beitrag Arbeitgeber",null,null,{"$f":"L12-L14","v":95}]
["Hinweise:"]
["Der Zins für die Nachschüssigkeit wurde nicht berücksichtigt."]
["Die Beitragsberechnung beruht auf den erfassten Daten. Massgebend ist schlussendlich die Prämienrechnung der Agrisano Pencas, welche aufgrund der effektiv gemeldeten Löhne erstellt wird."]